Workbook

Sheet Indice
B1: Sociedad: | C1: GRUPO VAZQUEZ S.A.E.
S2: 1 | T2: Enero
S3: 2 | T3: Febrero
S4: 3 | T4: Marzo
S5: 4 | T5: Abril
A6: Fecha Presentación: | B6: 2021-06-30 | S6: 5 | T6: Mayo
S7: 6 | T7: Junio
S8: 7 | T8: Julio
C9: INDICE | D9: REF. | S9: 8 | T9: Agosto
B10: Informacion General | S10: 9 | T10: Septiembre
C11: Descripción de la naturaleza y del negocio de la Sociedad | D11: Nota 1 | S11: 10 | T11: Octubre
C12: Resumen de las principales políticas contables | D12: Nota 2 | S12: 11 | T12: Noviembre
B13: Balance General | D13: BG | S13: 12 | T13: Diciembre
C14: Efectivo y equivalente de efectivo | D14: Nota 3
C15: Inversiones temporales | D15: Nota 4
C16: Cuentas por cobrar comerciales | D16: Nota 5
C17: Otros créditos | D17: Nota 6
C18: Cuentas por cobrar comerciales | D18: Nota 5
C19: Inventarios | D19: Nota 7
C20: Inversión en asociadas | D20: Nota 8
C21: Propiedades, planta y equipo | D21: Nota 9
C22: Activos en Fideicomiso | D22: Nota 10
C23: Activos intangibles | D23: Nota 11
C24: Goodwill | D24: Nota 12
C25: Cuentas por pagar comerciales | D25: Nota 13
C26: Préstamos a corto plazo | D26: Nota 14
C27: Porción corriente de la deuda a largo plazo | D27: Nota 15
C28: Remuneraciones y cargas sociales a pagar | D28: Nota 16
C29: Impuestos a pagar | D29: Nota 17
C30: Provisiones | D30: Nota 18
C31: Otros pasivos corrientes | D31: Nota 19
C32: Prestamos a largo plazo | D32: Nota 14
C33: Bonos Emitidos | D33: Nota 14
C34: Otros pasivos no corrientes | D34: Nota 19
C35: Capital integrado | D35: Nota 20
C36: Reserva de revalúo | D36: Nota 21
C37: Reserva legal | D37: Nota 21
C38: Reservas estatutarias | D38: Nota 21
C39: Reservas facultativas | D39: Nota 21
C40: Diferencia transitoria por conversión | D40: Nota 22
C41: Resultados acumulados | D41: Nota 23
C42: Resultados del Ejercicio | D42: Nota 23
C43: Interés minoritario | D43: Nota 24
B44: Estado de Resultados | D44: ER
C45: Ventas | D45: Nota 25
C46: Costo de ventas | D46: Nota 26
C47: Gastos de ventas | D47: Nota 27
C48: Gastos administrativos | D48: Nota 27
C49: Otros ingresos y gastos operativos | D49: Nota 28
C50: Ingresos financieros - neto | D50: Nota 29
C51: Gastos financieros - neto | D51: Nota 29
C52: Resultado de inversiones en asociadas | D52: Nota 30
C53: Resultado participación minoritaria | D53: Nota 31
C54: Impuesto a la renta | D54: Nota 32
C55: Resultado extraordinario neto de impuesto a la renta | D55: Nota 33
C56: Resultado sobre actividades discontinuadas neto de impuesto a la renta | D56: Nota 34
C57: Utilidad/(Pérdida) neta del año | D57: Nota 35
C58: Utilidad neta por acción ordinaria | D58: Nota 35
B59: Estado de Evolución del Patrimonio Neto | D59: EVPN
B60: Estado de Flujos de Efectivo | D60: EFE
B61: Otras Notas de los Estados Financieros
C62: Activos gravados | D62: Nota 36
C63: Contingencias y compromisos | D63: Nota 37
C64: Impuesto diferido | D64: Nota 38
C65: Hechos posteriores | D65: Nota 39
C66: Saldos y transacciones con partes relacionadas | D66: Nota 40

Sheet BG
D1: =Indice!C1 -> GRUPO VAZQUEZ S.A.E. | E1: Indice
A7: BALANCE GENERAL
A8: =IFERROR(IF(Indice!B6="","Al dia... de mes… de año 2XX2…","Al "&DAY(Indice!B6)&" de "&VLOOKUP(MONTH(Indice!B6),Indice!S:T,2,0)&" de "&YEAR(Indice!B6)),"Al dia... de mes… de año 2XX2…") -> Al 30 de Junio de 2021
A9: (En miles de guaraníes)
E11: Nota | F11: Junio 2021 | G11: Diciembre 2020
B12: ACTIVOS
B13: Activos Corrientes
C14: Efectivo y equivalente de efectivo | E14: 3 | F14: ='Nota 3'!C17 -> 105865878.9 | G14: ='Nota 3'!D17 -> 1551580.348
C15: Inversiones temporales | E15: 4 | F15: ='Nota 4'!B20 -> 0 | G15: ='Nota 4'!C20 -> 0
C16: Cuentas por cobrar comerciales | E16: 5 | F16: ='Nota 5'!C13 -> 1867767.61 | G16: ='Nota 5'!D13 -> 701718.656
C17: Otros créditos | E17: 6 | F17: ='Nota 6'!B22 -> 18592865.76 | G17: ='Nota 6'!C22 -> 11309980.01
C18: Inventarios | E18: 7 | F18: ='Nota 7'!B14 -> 29511360.54 | G18: ='Nota 7'!C14 -> 79028611.89
C19: Total activos corrientes | F19: =SUM(F14:F18) -> 155837872.8 | G19: =SUM(G14:G18) -> 92591890.91
B20: Activos no Corrientes
C21: Otros créditos | E21: 6 | F21: ='Nota 6'!F14 -> 6852878.383 | G21: ='Nota 6'!G14 -> 11900097.3
C22: Cuentas por cobrar comerciales | E22: 5 | F22: ='Nota 5'!C21 -> 0 | G22: ='Nota 5'!D21 -> 0
C23: Inversión en asociadas | E23: 8 | F23: ='Nota 8'!B11 -> 325687692.5 | G23: ='Nota 8'!C11 -> 154343509.4
C24: Otras Inversiones | E24: 8 | F24: ='Nota 8'!C39 -> 2051195.226 | G24: =+'Nota 8'!D39 -> 12157909.91
C25: Propiedades, planta y equipo/Bienes de uso, neto | E25: 9 | F25: ='Nota 9'!L20 -> 19326921.37 | G25: ='Nota 9'!M20 -> 43841676.71
C26: Activos en Fideicomiso | E26: 10 | F26: =+'Nota 10'!B11 -> 130934449.5 | G26: =+'Nota 10'!C11 -> 130934449.5
C27: Activos intangibles | E27: 11 | F27: ='Nota 11'!B12 -> 10937494.67 | G27: ='Nota 11'!C12 -> 8379262.043
C28: Goodwill | E28: 12 | F28: ='Nota 12'!B12 -> 0 | G28: ='Nota 12'!C12 -> 0
C29: Total activos no corrientes | F29: =SUM(F21:F28) -> 495790631.6 | G29: =SUM(G21:G28) -> 361556904.8
B30: Total Activos | F30: =+F19+F29 -> 651628504.4 | G30: =+G19+G29 -> 454148795.7
B32: PASIVOS Y PATRIMONIO NETO
B33: Pasivos corrientes | E33: -1 | F33: -1
C34: Cuentas por pagar comerciales | E34: 13 | F34: ='Nota 13'!D15 -> 8418810.816 | G34: ='Nota 13'!E15 -> 3605544.458
C35: Préstamos a corto plazo | E35: 14 | F35: ='Nota 14'!E25 -> 10350033.15 | G35: ='Nota 14'!K25 -> 8543931.394
C36: Porción corriente de la deuda a largo plazo | E36: 15 | F36: ='Nota 15'!B18 -> 2508505.739 | G36: ='Nota 15'!C18 -> 6751955.833
C37: Remuneraciones y cargas sociales a pagar | E37: 16 | F37: ='Nota 16'!B11 -> 730775.607 | G37: ='Nota 16'!C11 -> 83955.07
C38: Impuestos a pagar | E38: 17 | F38: ='Nota 17'!B11 -> 2267306.32 | G38: ='Nota 17'!C11 -> 2143367.885
C39: Provisiones | E39: 18 | F39: ='Nota 18'!B13 -> 0 | G39: ='Nota 18'!C13 -> 0
C40: Otros pasivos corrientes | E40: 19 | F40: ='Nota 19'!B15 -> 12317038.69 | G40: ='Nota 19'!C15 -> 1048703.532
C41: Total Pasivos Corrientes | F41: =+F34+F35+F36+F37+F38+F39+F40 -> 36592470.33 | G41: =+G34+G35+G36+G37+G38+G39+G40 -> 22177458.17
B42: Pasivos no corrientes
C43: Cuentas por pagar comerciales largo plazo | E43: 13 | F43: =+'Nota 13'!D22 -> 31595221.89 | G43: =+'Nota 13'!E22 -> 25292366.38
C44: Préstamos a largo plazo | E44: 14 | F44: ='Nota 14'!E43 -> 88226027.18 | G44: ='Nota 14'!K43 -> 116930621.6
C45: Bonos Emitidos | E45: 14 | F45: =+'Nota 14'!E56 -> 151455371 | G45: =+'Nota 14'!K56 -> 0
C46: Otros pasivos no corrientes | E46: 19 | F46: ='Nota 19'!F11 -> 68632970.52 | G46: ='Nota 19'!G11 -> 36618771.24
C47: Total pasivos no corrientes | F47: =SUM(F43:F46) -> 339909590.6 | G47: =SUM(G43:G46) -> 178841759.2
B49: Total Pasivos | F49: =+F41+F47 -> 376502060.9 | G49: =+G41+G47 -> 201019217.4
B51: Patrimonio Neto
C52: Capital integrado | E52: 20 | F52: ='Nota 20'!B14 -> 240000000 | G52: ='Nota 20'!C14 -> 240000000
C53: Aportes a capitalizar | E53: 20 | F53: ='Nota 20'!B15 -> 7054448.339 | G53: ='Nota 20'!C15 -> 54448.339
C54: Reserva de revalúo | E54: 21 | F54: =' Nota 21'!B8 -> 0 | G54: =' Nota 21'!C8 -> 0
C55: Reserva legal | E55: 21 | F55: =' Nota 21'!B12 -> 568139.857 | G55: =' Nota 21'!C12 -> 0
C56: Reservas estatutarias | E56: 21 | F56: =' Nota 21'!B17 -> 0 | G56: =' Nota 21'!C17 -> 0
C57: Reservas facultatitvas | E57: 21 | F57: =' Nota 21'!B21 -> 12506990.12 | G57: =' Nota 21'!C21 -> 1712332.836
C58: Diferencia transitoria por conversión | E58: 22 | F58: ='Nota 22'!B9 -> 0 | G58: ='Nota 22'!C9 -> 0
C59: Resultados acumulados | E59: 23 | F59: ='Nota 23'!B8 -> 0 | G59: ='Nota 23'!C8 -> 0
C60: Resultado del Ejercicio | E60: 23 | F60: ='Nota 23'!B9 -> 14996865.19 | G60: ='Nota 23'!C9 -> 11362797.14
C61: Subtotal | F61: =SUM(F52:F60) -> 275126443.5 | G61: =SUM(G52:G60) -> 253129578.3
C62: Interés minoritario | E62: 24 | F62: ='Nota 24'!B8 -> 0 | G62: ='Nota 24'!C8 -> 0
B63: Total Patrimonio Neto | F63: =F61 -> 275126443.5 | G63: =G61 -> 253129578.3
B65: Total Pasivos y Patrimonio Neto | F65: =+F49+F63 -> 651628504.4 | G65: =+G49+G63 -> 454148795.7
B67: Las notas que se acompañan forman parte integrante de estos estados.

Sheet ER
A1: =Indice!C1 -> GRUPO VAZQUEZ S.A.E. | B1: Indice | D1: =ER!A4 -> 
A7: ESTADO DE RESULTADOS
A8: =IFERROR(IF(Indice!B6="","Al dia... de mes… de año 2XX2…","Al "&DAY(Indice!B6)&" de "&VLOOKUP(MONTH(Indice!B6),Indice!S:T,2,0)&" de "&YEAR(Indice!B6)),"Al dia... de mes… de año 2XX2…") -> Al 30 de Junio de 2021
A9: Comparativo con igual período del año anterior
A10: (En miles de guaraníes)
B12: Nota | C12: Junio 2021 | D12: Junio 2020
A13: Ventas | B13: 25 | C13: ='Nota 25'!B18 -> 115643343.4 | D13: ='Nota 25'!C18 -> 10895121.75
A14: Costo de ventas | B14: 26 | C14: ='Nota 26'!B15 -> -88542366.49 | D14: ='Nota 26'!C15 -> -2028607.978
A15: Utilidad bruta | C15: =C13+C14 -> 27100976.93 | D15: =D13+D14 -> 8866513.773
A16: Gastos de ventas | B16: 27 | C16: ='Nota 27'!B45 -> -155736.022 | D16: ='Nota 27'!E45 -> -49899.692
A17: Gastos administrativos | B17: 27 | C17: ='Nota 27'!C45 -> -5061818.743 | D17: ='Nota 27'!F45 -> -1466486.939
A18: Otros ingresos y gastos operativos | B18: 28 | C18: =+'Nota 28'!B11+'Nota 28'!F19 -> -247546.416 | D18: =+'Nota 28'!C11+'Nota 28'!G19 -> 103136.928
A19: Resultado operativo | C19: =SUM(C15:C18) -> 21635875.75 | D19: =SUM(D15:D18) -> 7453264.07
A20: Gastos Financieros | B20: 29 | C20: =-'Nota 29'!B11 -> -7380615.37 | D20: =-'Nota 29'!C11 -> -7107600.528
A21: Conversion Moneda Extranjera | B21: 29 | C21: =-'Nota 29'!F10 -> 2407922.738 | D21: =-'Nota 29'!G10 -> 27201.818
A22: Subtotal | C22: =SUM(C20:C21) -> -4972692.632 | D22: =SUM(D20:D21) -> -7080398.71
A23: Resultado de inversiones en asociadas | B23: 30 | C23: ='Nota 30'!B13 -> 0 | D23: ='Nota 30'!C13 -> 0
A24: Resultados ordinarios antes de impuesto a la renta y participación minoritaria | C24: =C22+C23+C19 -> 16663183.12 | D24: =D22+D23+D19 -> 372865.36
A25: Resultado participación minoritaria | B25: 31 | C25: ='Nota 31'!B12 -> 0 | D25: ='Nota 31'!C12 -> 0
A26: Resultado ordinario antes del impuesto a la renta | C26: =+C24+C25 -> 16663183.12 | D26: =+D24+D25 -> 372865.36
A27: Impuesto a la renta | B27: 32 | C27: ='Nota 32'!B10 -> -1666317.934 | D27: ='Nota 32'!C10 -> 0
A28: Resultado neto de actividades ordinarias | C28: =C26+C27 -> 14996865.19 | D28: =D26+D27 -> 372865.36
A29: Resultado extraordinario neto de impuesto a la renta | B29: 33 | C29: 0 | D29: 0
A30: Resultado sobre actividades discontinuadas neto de impuesto a la renta | B30: 34 | C30: ='Nota 34'!B12 -> 0 | D30: ='Nota 34'!C12 -> 0
A31: Utilidad/(Pérdida) neta del año | C31: =C28+C29+C30 -> 14996865.19 | D31: =D28+D29+D30 -> 372865.36
A32: Utilidad neta por acción ordinaria | B32: 35 | C32: =+'Nota 35'!B11 -> 6248.693828 | D32: =+'Nota 35'!C11 -> 196.4517176
A35: Las notas que se acompañan forman parte integrante de estos estados.

Sheet EVPN
A1: =Indice!C1 -> GRUPO VAZQUEZ S.A.E. | I1: Indice
G7: ESTADO DE EVOLUCIÓN DEL PATRIMONIO NETO
I8: =IFERROR(IF(Indice!B6="","Al dia... de mes… de año 2XX2…","Al "&DAY(Indice!B6)&" de "&VLOOKUP(MONTH(Indice!B6),Indice!S:T,2,0)&" de "&YEAR(Indice!B6)),"Al dia... de mes… de año 2XX2…") -> Al 30 de Junio de 2021
A9: Comparativo con igual periodo del año anterior
A10: (En miles de guaraníes)
C13: Aporte de los propietarios | I13: Reserva de revalúo | K13: Reserva de revalúo técnico | M13: Ganancias reservadas | U13: Interes Minoritario | W13: Total
C14: Capital suscripto e integrado | E14: Aportes No Capitalizados | G14: Primas de emisión | M14: Reserva legal | O14: Reserva facultativa | Q14: Resultados acumulados | S14: Resultados del Ejercicio
Q15: Total | S15: Total
A17: Saldo al 31 de Diciembre de 2019 | C17: 189800000 | E17: 0 | G17: 0 | H17: 0 | I17: 7473689.44 | K17: 0 | M17: 353796.664 | O17: 12871299.12 | Q17: 3742114.22 | S17: 2410151.744 | U17: 0 | W17: 216651051.2
A18: Cambio en política contable (Nota….) | W18: =SUM(C18:V18) -> 0
A19: Saldo reestructurado | C19: =+C17+C18 -> 189800000 | E19: =+E17+E18 -> 0 | G19: =+G17+G18 -> 0 | I19: =+I17+I18 -> 7473689.44 | K19: =+K17+K18 -> 0 | M19: =+M17+M18 -> 353796.664 | O19: =+O17+O18 -> 12871299.12 | Q19: =+Q17+Q18 -> 3742114.22 | S19: =+S17+S18 -> 2410151.744 | U19: =+U17+U18 -> 0 | W19: 216651051.2
A20: Transferencia a Resultado Acumulado s/Acta de Asamblea Ordinaria | Q20: =-S20 -> 2410151.744 | S20: =-S19 -> -2410151.744 | U20: 0 | W20: 0
A21: Integración del capital social | U21: 0 | W21: 0
A22: Reserva Legal | U22: 0 | W22: 0
A23: Reserva de Revalúo de activos fijos | U23: 0 | W23: 0
A24: Otras Reservas | U24: 0 | W24: 0
A25: Revalúo técnico | U25: 0 | W25: 0
A26: Resultado del año | S26: =+ER!D31 -> 372865.36 | U26: 0 | W26: 372865.36
W27: 0
A28: =IFERROR(IF(Indice!B6="","Saldo al .. de de 20X1 ","Saldo al "&DAY(Indice!B6)&" de "&VLOOKUP(MONTH(Indice!B6),Indice!S:T,2,0)&" de "&YEAR(Indice!B6-365)),"Saldo al .. de de 20X1 ") -> Saldo al 30 de Junio de 2020 | B28: 365));"Saldo al .. de de 20X1 ") | C28: =C18+C19+C20+C22+C24+C25+C21+C23 -> 189800000 | E28: =E18+E19+E20+E22+E24+E25+E21+E23 -> 0 | G28: =G18+G19+G20+G22+G24+G25+G21+G23 -> 0 | H28: =SUM(H16:H26) -> 0 | I28: =I18+I19+I20+I22+I24+I25+I21+I23 -> 7473689.44 | K28: =K18+K19+K20+K22+K24+K25+K21+K23 -> 0 | M28: =M18+M19+M20+M22+M24+M25+M21+M23 -> 353796.664 | O28: =O18+O19+O20+O22+O24+O25+O21+O23 -> 12871299.12 | Q28: =Q18+Q19+Q20+Q22+Q24+Q25+Q21+Q23 -> 6152265.964 | S28: =S18+S19+S20+S22+S24+S25+S21+S23+S26 -> 372865.36 | U28: =U18+U19+U20+U22+U24+U25+U21+U23 -> 0 | W28: =SUM(C28:V28) -> 217023916.6
A30: Saldo al 31 de Diciembre de 2020 | C30: 240000000 | E30: 54448.339 | G30: 0 | I30: 0 | K30: 0 | M30: 0 | O30: 1712332.836 | Q30: 0 | S30: 11362797.14 | U30: 0 | W30: 253129578.3
A31: Transferencia a Reservas Especiales s/Acta de Asamblea General Ordinaria N° | C31: 0 | E31: 0 | G31: 0 | I31: 0 | K31: 0 | M31: =+-S31*5% -> 568139.8571 | O31: =-S31-M31 -> 10794657.28 | S31: -11362797.14 | U31: 0 | W31: 0
A32: Integración del capital social | E32: 7000000 | U32: 0 | W32: 7000000
A33: Integración del capital por Fusion | U33: 0 | W33: =SUM(C33:V33) -> 0
A34: Capitalizacion de Reservas | U34: 0 | W34: 0
A35: Ajustes por Fusion | U35: 0 | W35: 0
A36: Transferencia a Capital | U36: 0 | W36: 0
A37: Revalúo de activos fijos | U37: 0 | W37: =SUM(C37:V37) -> 0
A38: Otras Reservas | U38: 0 | W38: =SUM(C38:V38) -> 0
A40: Resultado del año | C40: 0 | E40: 0 | G40: 0 | I40: 0 | K40: 0 | M40: 0 | O40: 0 | Q40: 0 | S40: 14996865.19 | U40: 0 | W40: =SUM(C40:V40) -> 14996865.19
W41: =SUM(C41:V41) -> 0
A42: =IFERROR(IF(Indice!B6="","Saldo al .. de de 20X2 ","Saldo al "&DAY(Indice!B6)&" de "&VLOOKUP(MONTH(Indice!B6),Indice!S:T,2,0)&" de "&YEAR(Indice!B6)),"Saldo al .. de de 20X2 ") -> Saldo al 30 de Junio de 2021 | C42: =C30+C31+C37+C39+C40+C32+C33+C34+C35+C36+C38 -> 240000000 | E42: =E30+E31+E37+E39+E40+E32+E33+E34+E35+E36+E38 -> 7054448.339 | G42: =G30+G31+G37+G39+G40+G32+G33+G34+G35+G36+G38 -> 0 | I42: =I30+I31+I37+I39+I40+I32+I33+I34+I35+I36+I38 -> 0 | K42: =K30+K31+K37+K39+K40+K32+K33+K34+K35+K36+K38 -> 0 | M42: =M30+M31+M37+M39+M40+M32+M33+M34+M35+M36+M38 -> 568139.8571 | O42: =O30+O31+O37+O39+O40+O32+O33+O34+O35+O36+O38 -> 12506990.12 | Q42: =Q30+Q31+Q37+Q39+Q40+Q32+Q33+Q34+Q35+Q36+Q38 -> 0 | S42: =S30+S31+S37+S39+S40+S32+S33+S34+S35+S36+S38 -> 14996865.19 | U42: =U30+U31+U37+U39+U40+U32+U33+U34+U35+U36+U38 -> 0 | W42: =W30+W31+W37+W39+W40+W32+W33+W34+W35+W36+W38 -> 275126443.5

Sheet EFE
A1: =Indice!C1 -> GRUPO VAZQUEZ S.A.E. | C1: Indice
A7: ESTADO DE FLUJOS DE EFECTIVO
A8: =IFERROR(IF(Indice!B6="","Al dia... de mes… de año 2XX2…","Al "&DAY(Indice!B6)&" de "&VLOOKUP(MONTH(Indice!B6),Indice!S:T,2,0)&" de "&YEAR(Indice!B6)),"Al dia... de mes… de año 2XX2…") -> Al 30 de Junio de 2021
A9: Comparativo con igual periodo del año anterior
A10: (En miles de guaraníes)
B13: Junio 2021 | C13: Junio 2020
A15: FLUJO DE EFECTIVO DE ACTIVIDADES OPERATIVAS
A16: Cobranzas efectuadas a clientes | B16: 74093439.13 | C16: 11280440.03
A17: Pagos efectuados a proveedores y empleados | B17: -7978812.609 | C17: -11885326.28
A18: Efectivo generado por las operaciones | B18: 0 | C18: 0
A19: Pagos de impuesto a la renta | B19: -1553798.111 | C19: -101465.551
A20: Flujo neto de efectivo de actividades operativas | B20: =SUM(B16:B19) -> 64560828.41 | C20: =SUM(C16:C19) -> -706351.797
A22: FLUJO DE EFECTIVO DE ACTIVIDADES DE INVERSIÓN
A23: Adquisición de bienes Curtiembre - fideicomitida
A24: Ventas de activos fijos | C24: 0
A25: Variacion de bienes de uso | B25: 29288624.76 | C25: -5810405.328
A26: inversiones | B26: -133086618.3 | C26: 16551312.27
A27: Flujo neto de efectivo de actividades de inversión | B27: =SUM(B23:B26) -> -103797993.5 | C27: =SUM(C23:C26) -> 10740906.95
A29: FLUJO DE EFECTIVO DE ACTIVIDADES DE FINANCIACIÓN
A30: (Disminución) Incremento de préstamos | B30: -11445176.15 | C30: -3162006.579
A31: (Disminución) Incremento de Bonos | B31: 151455371
A32: Aportes de capital recibidos | B32: 7000000 | C32: 0
A33: Intereses Pagados | B33: -5866653.927 | C33: -7107600.528
A34: Flujo neto de efectivo de actividades de financiamiento | B34: =SUM(B30:B33) -> 141143541 | C34: =SUM(C30:C33) -> -10269607.11
A36: (Disminución) Incremento neto de efectivo | B36: =+B20+B27+B34 -> 101906375.8 | C36: =+C20+C27+C34 -> -235051.959
A37: Efecto estimado de la diferencia de cambio sobre el saldo de efectivo | B37: 2407922.738 | C37: 27201.818
A38: Efectivo al principio del año | B38: 1551580.348 | C38: 426710.071
A40: Efectivo al final del periodo | B40: =+SUM(B36:B38) -> 105865878.9 | C40: =+SUM(C36:C38) -> 218859.93
A42: Las notas que se acompañan forman parte integrante de estos estados.

Sheet Nota1
A1: =Indice!C1 -> GRUPO VAZQUEZ S.A.E. | I1: BG
A6: NOTAS A LOS ESTADOS FINANCIEROS CORRESPONDIENTES AL PERIODO TERMINADO | H6: =IFERROR(IF(Indice!B6="","Al dia... de mes… de año 2XX2…","Al "&DAY(Indice!B6)&" de "&VLOOKUP(MONTH(Indice!B6),Indice!S:T,2,0)&" de "&YEAR(Indice!B6)),"Al dia... de mes… de año 2XX2…") -> Al 30 de Junio de 2021
A7: Presentadas en forma comparativa según lo establecido en la resolucion CNV CG N° 6/19 Titulo 31 Capitulo 3 Articulo 3°
A11: NOTA 1 – DESCRIPCIÓN DE LA NATURALEZA Y DEL NEGOCIO DE LA COMPAÑÍA
A12: Antecedentes de la sociedad: naturaleza jurídica, antecedentes sobre la constitución de la sociedad y reformas estatutarias, actividad principal y secundarias.
A13: La sociedad es una entidad comercial creada por Escritura Publica Nº 55 de fecha 21 de octubre de 2014 incripta en el Registro Publico de Personas Juridicas y Asociaciones bajo el numero 915, al folio 1.777 en fecha 29 de octubre de 2014 y en el Registro Publico de Comercio en el libro seccional respectivo bajo el numero 1541, serie C, al folio 18.598 y siguiente en fecha 29 de octubre de 2014.
A14: En fecha 27/03/2017 por escritura pública N° 30 los accionistas deciden aumentar el capital social a Gs. 300.000.000.000 (Guaraníes Trescientos Mil millones), representadas en 3.000 (tres mil) acciones nominativas no endozables de un valor nominal de Gs. 100.000.000 (Guaraníes Cien Millones) cada una numeradas del 1 al 3.000. En las Asambleas de Accionistas, las acciones numeradas del 1 al 2.000 tendrán derecho 5 (cinco) votos por Acción, y las numeradas del 2.001 al 3.000 tendrán derecho a 1 (Un) voto por Acción.-.
A15: En fecha 22/05/2020 por escritura pública N° 43 los accionistas deciden el cambio de denominacion y tipo social de "FMVV S.A.I.C.A.G." a "GRUPO VAZQUEZ S.A.E."
A16: En fecha 28/12/2020 por escritura pública N° 117 los accionistas deciden formalizar el Acuerdo Definitovo de Fusion por Absorcion quedando absorbida la Firma ELECTROLAR S.A., por la Firma GRUPO VAZQUEZ S.A.E.
A17: La sociedad tiene por objetivo principal cualquier actividad lícita que el Directorio creyere conveniente a los intereses de la sociedad, además de realizar con fondos propios las operaciones que más adelante se especifican, sea por cuenta propia o por asociada a terceros; en cualquier lugar de la República del Paraguay o del extranjero, sin que ello implique limitación a sus actividades; representación, distribución y mandatos de empresas y/o personas del país o del exterior; además podrá dedicarse a las actividades agrícolas, ganaderas y agropecuarias, así como a cualquier negocio relacionado o derivado de este tipo de actividades.-

Sheet Nota 2
A1: =Indice!C1 -> GRUPO VAZQUEZ S.A.E. | I1: BG
A6: NOTA 2 - RESUMEN DE LAS PRINCIPALES POLÍTICAS CONTABLES
A7: Resumen de las principales políticas contables: a modo referencial, se incluyen las siguientes revelaciones de políticas contables en estados financieros de uso general que podrá ser tenida en consideración por las sociedades emisoras para la preparación de este capítulo de los estados financieros:
A9: a. Bases de contabilización (Según NIF Bases de preparación de los Estados Financieros)
A10: Los estados financieros se han preparado siguiendo los criterios de las Normas de Información Financiera (NIF) emitidas por el Consejo de Contadores Públicos del Paraguay sobre la base de costos históricos, excepto para el caso de activos y pasivos en moneda extranjera y las propiedades, planta y equipo según se explica en los puntos c ) y k), y no reconocen en forma integral los efectos de la inflación sobre la situación patrimonial y financiera de la sociedad, sobre los resultados de sus operaciones y los flujos de efectivo, en atención a que la corrección monetaria no constituye una práctica contable obligatoria en el Paraguay.
A11: De haberse aplicado una corrección monetaria integral de los estados financieros, podrían haber surgido diferencias en la presentación de la situación patrimonial y financiera de la sociedad, en los resultados de sus operaciones y en los flujos de efectivo al 30/06/2021, y por el ejercicio cerrado el, 31 de Diciembre de 2020. Según el índice general de precios del consumo (IPC) publicado por el Banco Central del Paraguay, la inflación fue de 2,2% en el año 2020 .
A13: b. Uso de estimaciones contables
A14: La preparación de los presentes estados financieros requiere que la Gerencia de la sociedad realice estimaciones y evaluaciones que afectan el monto de los activos y pasivos registrados y contingentes, como así también los ingresos y egresos registrados en el ejercicio. Los resultados reales futuros pueden diferir de las estimaciones y evaluaciones realizadas a la fecha de preparación de los presentes estados financieros.
A16: c. Moneda extranjera
A17: Los activos y pasivos en moneda extranjera se valúan a los tipos de cambio vigentes a la fecha de cierre del ejercicio.
A18: Las diferencias de cambio originadas por fluctuaciones en los tipos de cambio producidos entre las fechas de concertación de las operaciones y su liquidación o valuación al cierre del ejercicio, son reconocidas en resultados.
B19: Junio 2021
E20: Tipo de Cambio Comprador | F20: Tipo de Cambio vendedor
B21: Cuentas Activas - US$ 1 = G. | E21: 6733.98
B22: Cuentas Pasivas - US$ 1 = G. | F22: 6761.37
B23: Año 2020
E24: Tipo de Cambio Comprador | F24: Tipo de Cambio vendedor
B25: Cuentas Activas - US$ 1 = G. | E25: 6891.96
B26: Cuentas Pasivas - US$ 1 = G. | F26: 6941.65
A29: d. Efectivo y equivalentes de efectivo
A30: Están constituidas por fondos en poder de la entidad como también en bancos de plaza, en guaraníes y en dólares, en ahorros y en cuentas corrientes de libre disponibilidad y sin gravamen.
A32: e. Inversiones
A33: Las inversiones temporales se valúan de acuerdo a los siguientes criterios de valuación:  Valores mobiliarios: a su valor de cotización al cierre del año/período menos los gastos estimados de venta.  Colocaciones financieras en moneda local: a su valor nominal más los intereses devengados al cierre del año/período.  Colocaciones financieras en moneda extranjera: a su valor de cotización al cierre del año/período más intereses devengados a ese momento.  Las inversiones no corrientes en sociedades donde no se ejerce el control, se valúan a su valor patrimonial proporcional.
A35: f. Previsión para cuentas de dudoso cobro/incobrables
A36: Las previsiones para cuentas de dudoso cobro se determinan al cierre de cada ejercicio y/o mensualmente sobre la base del estudio de la cartera de créditos realizado con el objeto de determinar la porción no recuperable de las cuentas a cobrar.
A38: g. Inventarios
A39: Las existencias se valúan al menor entre su costo de adquisición o de producción y su valor neto de realización (NIF 12, párrafo 5). Para determinar el consumo (baja de inventarios) se aplicarán las fórmulas de costeo siguientes: FIFO, (Primero Entrado Primero en Salir – PEPS); PPP (Precio Promedio Ponderado); o identificación específica (NIF 12, párrafos 16 a 20).
A42: h. Activos disponibles para la venta
A43: Los activos disponibles para la venta representan bienes que fueron desafectados de la actividad productiva y se mantienen con el único objetivo de ser vendidos. Los mismos se valúan, sin amortizar, al menor entre el valor de mercado de los mismos y su costo (valor libro) al momento de su designación como disponibles para la venta.
A46: i. Previsiones para desvalorización y deterioro de inventarios
A47: Las previsiones para desvalorización y deterioro de inventarios han sido estimadas tomando como base la valorización del stock deteriorado existente al cierre del ejercicio.
A49: j. Propiedades, planta y equipo
A50: Las propiedades, planta y equipo se exponen a su costo histórico ajustado por el coeficiente de revalúo emitido por la Autoridad Tributaria, menos la correspondiente depreciación acumulada. El incremento neto por la re-expresión se acredita a la respectiva reserva patrimonial, cuyo saldo puede ser utilizado únicamente para aumentar el capital.
A51: El costo de las mejoras que extienden la vida útil de los bienes o aumentan su capacidad productiva es imputado a las cuentas respectivas del activo. Los gastos de mantenimiento son cargados a resultados.
A52: La depreciación es calculada por el método de línea recta, saldo decreciente o suma de unidades (la emisora elige uno de los tres métodos con base en el patrón esperado de beneficios económicos y lo aplica consistentemente de ejercicio a ejercicio a menos que haya cambios significativos en dicho patrón considerado -NIF 11 párrafo 43 y 48).
A54: k. Intangibles
A55: Los intangibles se exponen a su costo incurrido menos las correspondientes amortizaciones acumuladas al cierre del año.
A56: Las amortizaciones son calculadas por el método de línea recta.
A57: Este rubro incluye costos incurridos por la sociedad relacionados con ingresos futuros.
A59: l. Reconocimiento de ingresos y egresos
A60: Los ingresos y egresos son reconocidos en función de su devengamiento.
A62: m. Impuesto a la renta
A63: El impuesto a la renta que se carga a los resultados del año se basa en la utilidad contable antes de este concepto, ajustada por las partidas que la ley incluye o excluye para la determinación de la utilidad gravable a la que se aplica la tasa legal vigente del impuesto.
A65: n. Derechos en Fideicomiso
A66: Se manienen registros en el Activo de los bienes enregados a Fideicomiso. Ver nota 10

Sheet Nota 3
A1: =Indice!C1 -> GRUPO VAZQUEZ S.A.E. | E1: BG
A6: NOTA 3 - EFECTIVO Y EQUIVALENTE DE EFECTIVO
A7: En miles de guaranies
A9: La composición de la cuenta es la siguiente:
A11: Concepto | C11: Junio 2021 | D11: Diciembre 2020
A13: Caja | C13: 48638.595 | D13: 636098.267
A14: Fondos Fijos | C14: 11303.188 | D14: 2897.5
A15: Bancos Locales - Moneda local Guaraníes | C15: 50561603.13 | D15: 797633.028
A16: Bancos Locales - Moneda extranjera Dólares | C16: 55244334.01 | D16: 114951.553
A17: Total | C17: =SUM($C$13:C16) -> 105865878.9 | D17: =SUM($D$13:D16) -> 1551580.348

Sheet Nota 4
A1: =Indice!C1 -> GRUPO VAZQUEZ S.A.E. | D1: BG
A5: NOTA 4 - INVERSIONES TEMPORALES
A6: En miles de guaranies
A8: La composición de la cuenta es la siguiente:
B9: En miles de guaranies
A10: Concepto | B10: Junio 2021 | C10: Diciembre 2020
A11: Inversiones en Titulos del Sistema Financiero Local - Moneda Local Guaraníes
A12: Inversiones en Titulos del Sistema Financiero Local - Moneda Extranjera Dólares
A13: Inversiones en Titulos del Sistema Financiero Local - Moneda Extranjera otros
A14: Inversiones en Mercado Bursatil Local - Moneda Local Guaraníes
A15: Inversiones en Mercado Bursatil Local - Moneda Extranjera Dólares
A16: Inversiones en Mercado Bursatil Extranjera - Moneda Extranjera Dólares
A17: Inversiones en Mercado Bursatil Extranjera - Moneda Extranjera otros
A18: Otras inversiones - Moneda Local Guaraníes
A19: Otras inversiones - Moneda Extranjera Dólares
A20: Total | B20: =SUM($B$11:B19) -> 0 | C20: =SUM($C$11:C19) -> 0

Sheet Nota 5
A1: =Indice!C1 -> GRUPO VAZQUEZ S.A.E. | F1: BG
A5: NOTA 5 – CUENTAS POR COBRAR COMERCIALES
A6: En miles de guaranies
A8: Las cuentas a cobrar comerciales a corto plazo se integran como sigue:
C9: En miles de guaraníes
C10: Junio 2021 | D10: Diciembre 2020 | F10: Composición de la cartera de créditos por ventas | G10: =IFERROR(IF(Indice!B6="","2XX2",(Indice!B6)),"2XX2") -> 2021-06-30
A11: Deudores por ventas locales | B11: Moneda Local Guaraníes | C11: 1554929.458 | D11: 253741.256 | F11: Situación | G11: Monto | H11: % Previsiones sobre Cartera
A12: Deudores por ventas locales | B12: Moneda Extranjera Dólares | C12: 312838.152 | D12: 447977.4 | F12: A Total Cartera no Vencida | G12: =+C13 -> 1867767.61 | H12: 0
A13: Total | C13: =+SUM($C$11:C12) -> 1867767.61 | D13: =+SUM($D$11:D12) -> 701718.656 | F13: B. Total Cartera Vencida | G13: 0
F14: Composición Cartera Vencida
F15: Normal | G15: 0 | H15: 0
A16: Las cuentas a cobrar comerciales a largo plazo se integran como sigue: | F16: En Gestión de Cobro | G16: 0 | H16: 0
C17: En miles de guaraníes | F17: En Gestión de Cobro Judicial | G17: 0 | H17: 0
C18: Junio 2021 | D18: Diciembre 2020
A19: Deudores por ventas locales | B19: Moneda Local Guaraníes | C19: 0 | D19: 0 | F19: Total de la cartera de créditos (A+B) | G19: =G12+G13 -> 1867767.61
A20: Deudores por ventas locales | B20: Moneda Extranjera Dólares | C20: 0 | D20: 0
A21: Total | C21: =+SUM($C$19:C20) -> 0 | D21: =+SUM($D$19:D20) -> 0 | F21: (-) Total Previsiones | G21: =-((G12*H12)+(SUMPRODUCT(G15:G17,H15:H17))) -> 0
F23: TOTAL NETO DE LA CARTERA DE CRÉDITOS | G23: =G19+G21 -> 1867767.61
F25: Observaciones
F26: Criterios de Clasificación utilizados | G26: De | H26: A
F27: Normal | G27: 1 | H27: 30
F28: En Gestión de Cobro | G28: 31 | H28: 60
F29: En Gestión de Cobro Judicial | G29: 61 | H29: 10000

Sheet Nota 6
A1: =Indice!C1 -> GRUPO VAZQUEZ S.A.E. | D1: BG
A5: NOTA 6 - OTROS CRÉDITOS
A6: En miles de guaranies
A8: El rubro de otros créditos se compone como sigue:
A10: Corrientes | E10: No corrientes
A12: Concepto | B12: Junio 2021 | C12: Diciembre 2020 | E12: Concepto | F12: Junio 2021 | G12: Diciembre 2020
A13: Anticipos a proveedores | B13: 8522387.838 | C13: 2864274.227 | E13: Cuentas a Cobrar | F13: 6852878.383 | G13: 11900097.3
A14: Gastos pagados por adelantado | B14: 301391.215 | C14: 447377.481 | E14: Total | F14: =SUM(F13:F13) -> 6852878.383 | G14: =SUM(G13:G13) -> 11900097.3
A15: Anticipo Impuesto a la Renta | B15: 109965 | C15: 109965
A16: Retención Impuesto a la Renta | B16: 286.047 | C16: 107.215
A17: Retención Impuesto al Valor agregado | B17: 11239.817 | C17: 0
A18: Credito Fiscal - IVA | B18: 5182556.343 | C18: 4501488.06
A19: Creditos Fiscales - Entidad Absorbida | B19: 2039147.293 | C19: 2039110.929
A20: Otras cuentas por Cobrar | B20: 2414980.422 | C20: 1347394.603
A21: Anticipos de Salarios | B21: 10911.782 | C21: 262.5
A22: Total | B22: =SUM($B$13:B21) -> 18592865.76 | C22: =SUM($C$13:C21) -> 11309980.01

Sheet Nota 7
A1: =Indice!C1 -> GRUPO VAZQUEZ S.A.E. | D1: BG
A5: NOTA 7 – INVENTARIOS
A6: En miles de guaranies
A8: Los bienes de cambio están compuestos de la siguiente manera:
A10: Concepto | B10: Junio 2021 | C10: Diciembre 2020
A11: Mercaderías | B11: =12996213.448+7744860.15 -> 20741073.6 | C11: 43935726.82
A12: Productos Forestales | B12: 0 | C12: 25650306.89
A13: Activos Biologicos en Produccion | B13: 8770286.94 | C13: 9442578.18
A14: Total | B14: =SUM(B11:B13) -> 29511360.54 | C14: =SUM(C11:C13) -> 79028611.89

Sheet Nota 8
A1: =Indice!C1 -> GRUPO VAZQUEZ S.A.E. | D1: BG
A5: Nota 8 - INVERSIONES EN ASOCIADAS
A6: En miles de guaraníes
A8: Las inversiones en sociedades donde no se ejerce control se describen a continuación
A10: Periodo | B10: Junio 2021 | C10: Diciembre 2020
A11: Total Inversión | B11: =SUM($I$16:I23) -> 325687692.5 | C11: 154343509.4
A13: a) Datos sobre la sociedad: | G13: a) Datos sobre la inversión:
D14: =IFERROR(IF(Indice!B6="","2XX2",YEAR(Indice!B6)),"2XX2") -> 2021
A15: Nombre de Sociedad | B15: RUC | C15: Cantidad de acciones | D15: Total Patrimonio neto | E15: Total del resultado | G15: Cantidad de acciones | H15: Participación sobre los votos (%) | I15: Total Inversión (miles de Gs) | J15: Participación sobre el Patrimonio Neto (%) | K15: Total valuación patrimonial proporcional | L15: Resultado sobre inversiones
A16: STE S.A. | B16: 80090944-5 | C16: 48 | D16: 44294743 | E16: 7743149 | G16: 1 | H16: =+G16/C16 -> 0.02083333333 | I16: 100000 | J16: =+G16/C16 -> 0.02083333333 | K16: =J16*D16 -> 922807.1458 | L16: =J16*E16 -> 161315.6042
A17: Grupo Hendy S.A. | B17: 80082125-4 | C17: 100 | D17: =85609266/1000 -> 85609.266 | E17: =-47909803/1000 -> -47909.803 | G17: 4 | H17: =+G17/C17 -> 0.04 | I17: =+(1000000-406582)/1000 -> 593.418 | J17: =+G17/C17 -> 0.04 | K17: =J17*D17 -> 3424.37064 | L17: =J17*E17 -> -1916.39212
A18: Grupo M S.A. | B18: 80084086-0 | C18: 100 | D18: =138687677/1000 -> 138687.677 | E18: =-39146992/1000 -> -39146.992 | G18: 10 | H18: =+G18/C18 -> 0.1 | I18: =17783467/1000 -> 17783.467 | J18: 0.1 | K18: 13868.7677 | L18: -3914.6992
A19: CrediCentro S.A.E.C.A. | B19: 80011000-5 | C19: 407821 | D19: 434250163.8 | E19: 9036094.924 | G19: 142028 | H19: 0.8437 | I19: =165209132475/1000 -> 165209132.5 | J19: =+G19/C19 -> 0.348260634 | K19: =J19*D19 -> 151232237.3 | L19: =J19*E19 -> 3146916.147
A20: MOWI S.A. | B20: 80115208-9 | C20: 8000 | D20: 8000000 | E20: 0 | G20: 7999 | H20: 0.99 | I20: 7999000 | J20: =+G20/C20 -> 0.999875 | K20: =J20*D20 -> 7999000 | L20: =J20*E20 -> 0
A21: CBS.S.A. | B21: 80110547-1 | C21: 2 | D21: 2000 | E21: 0 | G21: 1 | H21: 0.5 | I21: 1000 | J21: =+G21/C21 -> 0.5 | K21: =J21*D21 -> 1000 | L21: =J21*E21 -> 0
A22: ITTI S.A.E.C.A. | B22: 80028355-4 | C22: 34936 | D22: 51371148.61 | E22: 13889388.51 | G22: 33536 | H22: 0.9873 | I22: =33536616549/1000 -> 33536616.55 | J22: =+G22/C22 -> 0.9599267232 | K22: =J22*D22 -> 49312538.35 | L22: =J22*E22 -> 13332795.2
A23: Financiera El Comercio S.A.E.C.A. | B23: 80026157-7 | C23: 90510 | D23: 126206457.8 | E23: 4040110.819 | G23: 57991 | H23: 0.6379 | I23: =118823566591/1000 -> 118823566.6 | J23: =+G23/C23 -> 0.6407137333 | K23: =J23*D23 -> 80862210.76 | L23: =J23*E23 -> 2588554.486
A26: OTRAS INVERSIONES
A27: En miles de guaranies
A29: La composición de la cuenta a largo plazo es la siguiente:
A31: Concepto | C31: Junio 2021 | D31: Diciembre 2020
A33: Inversiones en IT Consultores S.A. | C33: 0 | D33: 10534781.49
A34: Inversiones en The Forest S.A. | C34: =2051195226/1000 -> 2051195.226 | D34: 1623128.423
A35: Inversiones en Titulos - Moneda Local Guaraníes | C35: 0 | D35: 0
A36: Inversiones en Titulos - Moneda Extranjera Dólares | C36: 0 | D36: 0
A37: Inversiones en Mercado Bursatil Extranjera | C37: 0 | D37: 0
A38: Menos Previsiones | C38: 0 | D38: 0
A39: Total | C39: =SUM(C33:C38) -> 2051195.226 | D39: =SUM(D33:D38) -> 12157909.91

Sheet Nota 9
A1: =Indice!C1 -> GRUPO VAZQUEZ S.A.E. | L1: BG
A5: NOTA 9 - PROPIEDADES, PLANTA Y EQUIPO - NETO
A6: En miles de guaraníes | J6: -1
B8: Costo histórico revaluado al inicio del año | C8: Adquisiciones | D8: Bajas | E8: Revalúo del año | F8: Valor de origen revaluado al final del año | G8: Depreciación acumulada revaluada al inicio del año | H8: Depreciación del año | I8: Bajas de depreciaciones acumuladas | J8: Revalúo depreciación acumulada del año | K8: Depreciación acumulada revaluada al final del año | L8: Valor neto contable
L9: Junio 2021 | M9: Diciembre 2020
A10: Instalaciones | B10: 1195039.489 | C10: 16834.71918 | E10: 0 | F10: =SUM(B10:E10) -> 1211874.208 | G10: 309824.991 | H10: 31709.59513 | K10: =SUM(G10:J10) -> 341534.5861 | L10: =+F10-K10 -> 870339.6219 | M10: =+B10-G10 -> 885214.4978
A11: Rodados | B11: 7766032.6 | E11: 0 | F11: =SUM(B11:E11) -> 7766032.6 | G11: 307643.995 | H11: 97051.1072 | K11: =SUM(G11:J11) -> 404695.1022 | L11: =+F11-K11 -> 7361337.498 | M11: =+B11-G11 -> 7458388.605
A12: Equipos | B12: 735558.346 | E12: 0 | F12: 735558.346 | G12: 166780.103 | H12: 23719.23752 | K12: 190499.3405 | L12: 545059.0055 | M12: 568778.243
A13: Muebles y útiles | B13: 649831.758 | C13: 32.727 | E13: 0 | F13: 649864.485 | G13: 200224.4 | H13: 33765.12661 | K13: 233989.5266 | L13: 415874.9584 | M13: 449607.358
A14: Equipos de comunicación | B14: 0 | E14: 0 | F14: 0 | G14: 0 | H14: 0 | K14: 0 | L14: 0 | M14: 0
A15: Maquinarias y herramientas | B15: 4119604.645 | E15: 0 | F15: 4119604.645 | G15: 1530298 | H15: 252146.871 | K15: 1782444.871 | L15: 2337159.774 | M15: 2589306.645
A16: Obras en curso | B16: 0 | E16: 0 | F16: 0 | G16: 0 | H16: 0 | K16: 0 | L16: 0 | M16: 0
A17: Inmuebles | B17: 30620939.77 | C17: =33395167.039-7744860.15 -> 25650306.89 | D17: -50219218.92 | E17: 0 | F17: 6052027.742 | G17: 0 | H17: 0 | K17: 0 | L17: 6052027.742 | M17: =+B17-G17 -> 30620939.77
A18: Campos | B18: 0 | E18: 0 | F18: 0 | G18: 0 | H18: 0 | K18: 0 | L18: 0 | M18: 0
A19: Mejoras en predio ajeno | B19: 1374684.802 | C19: 528302.794 | E19: 0 | F19: 1902987.596 | G19: 105243.216 | H19: 52621.60735 | K19: 157864.8233 | L19: 1745122.773 | M19: 1269441.586
A20: Totales | B20: =SUM(B10:B19) -> 46461691.41 | C20: 26195477.13 | D20: -50219218.92 | E20: 0 | F20: 22437949.62 | G20: 2620014.705 | H20: 491013.5448 | I20: 0 | J20: 0 | K20: 3111028.25 | L20: =SUM($L$10:L19) -> 19326921.37 | M20: =SUM($M$10:M19) -> 43841676.71

Sheet Nota 10
A1: =Indice!C1 -> GRUPO VAZQUEZ S.A.E. | C1: BG
A5: NOTA 10 – ACTIVOS EN FIDEICOMISO
A6: En miles de guaranies
B8: Junio 2021 | C8: Diciembre 2020
A9: Propiedad, planta y equipo
A10: Campos Rurales - Estancia Don Miguel | B10: 130934449.5 | C10: 130934449.5
A11: Total | B11: =B10 -> 130934449.5 | C11: =C10 -> 130934449.5

Sheet Nota 11
A1: =Indice!C1 -> GRUPO VAZQUEZ S.A.E. | F1: BG
A5: NOTA 11 – ACTIVOS INTANGIBLES
A6: En miles de guaranies
A8: Activos intangibles | B8: Junio 2021 | C8: Diciembre 2020
A9: Gastos Proyecto de Inversion | B9: =2551082083/1000 -> 2551082.083 | C9: 0
A10: Software | B10: =21973316/1000 -> 21973.316 | C10: 14822.771
A11: Gastos por Fusion | B11: 8364439.272 | C11: 8364439.272
A12: Total general | B12: =SUM(B9:B11) -> 10937494.67 | C12: =SUM(C9:C11) -> 8379262.043

Sheet Nota 12
A1: =Indice!C1 -> GRUPO VAZQUEZ S.A.E. | E1: BG
A5: NOTA 12 – GOODWILL
A6: En miles de guaranies
A8: Goodwill | B8: Junio 2021 | C8: Diciembre 2020
A12: Total general | B12: =SUM(B9:B11) -> 0 | C12: =SUM(C9:C11) -> 0

Sheet Nota 13
A1: =Indice!C1 -> GRUPO VAZQUEZ S.A.E. | C1: BG
A5: NOTA 13 – CUENTAS POR PAGAR COMERCIALES
A6: En miles de guaranies
A8: Las cuentas por pagar comerciales se componen como sigue:
A10: Corrientes | B10: Simbología según ISO 4217 | C10: Indicación de Moneda | D10: Junio 2021 | E10: Diciembre 2020
A11: Proveedores - Entidades Relacionadas | B11: PYG | C11: =IFERROR(VLOOKUP(B11,'Base de Monedas'!A:B,2,0),"") -> Guaraní | D11: 13665.672 | E11: 13665.672
A12: Proveedores locales - Moneda Local | B12: PYG | C12: =IFERROR(VLOOKUP(B12,'Base de Monedas'!A:B,2,0),"") -> Guaraní | D12: 1098647.567 | E12: 892451.732
A13: Proveedores locales - Moneda Extranjera | B13: PYG | C13: =IFERROR(VLOOKUP(B13,'Base de Monedas'!A:B,2,0),"") -> Guaraní | D13: =13665417.416-3854642.5-2504277.339 -> 7306497.577 | E13: 2683531.311
A14: Tarjetas de Credito | B14: PYG | C14: =IFERROR(VLOOKUP(B14,'Base de Monedas'!A:B,2,0),"") -> Guaraní | D14: 0 | E14: 15895.743
A15: Total cuentas a pagar por comerciales | D15: =SUM($D$11:D14) -> 8418810.816 | E15: =SUM($E$11:E14) -> 3605544.458
A19: No Corrientes | B19: Simbología según ISO 4217 | C19: Indicación de Moneda | D19: Junio 2021 | E19: Diciembre 2020
A20: Proveedores - Entidades Relacionadas | B20: PYG | C20: =IFERROR(VLOOKUP(B20,'Base de Monedas'!A:B,2,0),"") -> Guaraní | D20: 23133619.43 | E20: 23133619.43
A21: Proveedores locales - Moneda Extranjera | B21: PYG | C21: =IFERROR(VLOOKUP(B21,'Base de Monedas'!A:B,2,0),"") -> Guaraní | D21: =2102682.621+3854642.5+2504277.339 -> 8461602.46 | E21: 2158746.943
A22: Total cuentas a pagar por comerciales | D22: =SUM($D$20:D21) -> 31595221.89 | E22: =SUM($E$20:E21) -> 25292366.38

Sheet Nota 14
A1: =Indice!C1 -> GRUPO VAZQUEZ S.A.E. | E1: BG | L1: BG
A5: NOTA 14 – PRESTAMOS A CORTO Y LARGO PLAZO
A6: En miles de guaranies
A8: Corrientes
D9: Junio 2021 | J9: Diciembre 2020
A10: Préstamos de Entidades Locales | B10: Vencimiento | C10: Símbolo de Moneda | D10: Moneda | E10: Importe (miles de Gs) | F10: Tipo de Garantía | H10: Vencimiento | I10: Símbolo de Moneda | J10: Moneda | K10: Importe (miles de Gs) | L10: Tipo de Garantía
A11: BANCO ITAU S.A.E.C.A. | D11: =IFERROR(VLOOKUP(C11,'Base de Monedas'!A:B,2,0),"") ->  | J11: =IFERROR(VLOOKUP(I11,'Base de Monedas'!G:H,2,0),"") -> 
A12: CRISOL Y ENCARNACION FINANCIERA S.A.E.C.A. | B12: 2022 | C12: PYG | D12: =IFERROR(VLOOKUP(C12,'Base de Monedas'!A:B,2,0),"") -> Guaraní | E12: =3565270170/1000 -> 3565270.17 | F12: Codeudoria
A13: BANCO BASA S.A. | B13: 2021 | C13: PYG | D13: =IFERROR(VLOOKUP(C13,'Base de Monedas'!A:B,2,0),"") -> Guaraní | E13: 3600000 | F13: Codeudoria | H13: 2021 | I13: PYG | J13: =IFERROR(VLOOKUP(I13,'Base de Monedas'!G:H,2,0),"") ->  | K13: 3600000 | L13: Codeudoria
A14: FINLATINA S.A. DE FINANZAS | C14: PYG | D14: =IFERROR(VLOOKUP(C14,'Base de Monedas'!A:B,2,0),"") -> Guaraní | F14: Codeudoria | H14: 2021 | I14: PYG | J14: =IFERROR(VLOOKUP(I14,'Base de Monedas'!G:H,2,0),"") ->  | K14: 487726.027 | L14: Codeudoria
A15: FINEXPAR S.A.E.C.A. | B15: 2021 | C15: PYG | D15: =IFERROR(VLOOKUP(C15,'Base de Monedas'!A:B,2,0),"") -> Guaraní | E15: =1888298693/1000 -> 1888298.693 | F15: Codeudoria
A16: CREDICENTRO S.A.E.C.A. | C16: PYG | D16: =IFERROR(VLOOKUP(C16,'Base de Monedas'!A:B,2,0),"") -> Guaraní | F16: Codeudoria | J16: =IFERROR(VLOOKUP(I16,'Base de Monedas'!G:H,2,0),"") -> 
A17: CREDICENTRO S.A.E.C.A. | C17: USD | D17: =IFERROR(VLOOKUP(C17,'Base de Monedas'!A:B,2,0),"") -> Dólar estadounidense | F17: Codeudoria | H17: 2021 | I17: USD | J17: =IFERROR(VLOOKUP(I17,'Base de Monedas'!G:H,2,0),"") ->  | K17: 4250125.866 | L17: Codeudoria
A18: TARJETA DE CREDITO -VISA 1 | B18: 2021 | C18: PYG | D18: =IFERROR(VLOOKUP(C18,'Base de Monedas'!A:B,2,0),"") -> Guaraní | E18: 23266.774 | F18: A sola Firma | H18: 2021 | I18: USD | J18: =IFERROR(VLOOKUP(I18,'Base de Monedas'!G:H,2,0),"") ->  | K18: 29790.634 | L18: A sola Firma
A19: TARJETA DE CREDITO -VISA 2 | B19: 2021 | C19: PYG | D19: =IFERROR(VLOOKUP(C19,'Base de Monedas'!A:B,2,0),"") -> Guaraní | E19: 1486.086 | F19: A sola Firma | H19: 2021 | I19: USD | J19: =IFERROR(VLOOKUP(I19,'Base de Monedas'!G:H,2,0),"") ->  | K19: 2756.026 | L19: A sola Firma
A20: Intereses préstamos entidades financieras a pagar | D20: =IFERROR(VLOOKUP(C20,'Base de Monedas'!A:B,2,0),"") ->  | J20: =IFERROR(VLOOKUP(I20,'Base de Monedas'!G:H,2,0),"") -> 
A21: Intereses a pagar | C21: PYG | D21: =IFERROR(VLOOKUP(C21,'Base de Monedas'!A:B,2,0),"") -> Guaraní | E21: 2624883.326 | I21: PYG | J21: =IFERROR(VLOOKUP(I21,'Base de Monedas'!G:H,2,0),"") ->  | K21: 438356.165
A22: (-) Intereses a Devengar | C22: PYG | D22: =IFERROR(VLOOKUP(C22,'Base de Monedas'!A:B,2,0),"") -> Guaraní | E22: -1353171.898 | I22: PYG | J22: =IFERROR(VLOOKUP(I22,'Base de Monedas'!G:H,2,0),"") ->  | K22: -389850.073
A23: Intereses a pagar | C23: USD | D23: =IFERROR(VLOOKUP(C23,'Base de Monedas'!A:B,2,0),"") -> Dólar estadounidense | I23: USD | J23: =IFERROR(VLOOKUP(I23,'Base de Monedas'!G:H,2,0),"") ->  | K23: 420077.4206
A24: (-) Intereses a Devengar | C24: USD | D24: =IFERROR(VLOOKUP(C24,'Base de Monedas'!A:B,2,0),"") -> Dólar estadounidense | I24: USD | J24: =IFERROR(VLOOKUP(I24,'Base de Monedas'!G:H,2,0),"") ->  | K24: -295050.6724
A25: Total | D25: =IFERROR(VLOOKUP(C25,'Base de Monedas'!A:B,2,0),"") ->  | E25: =SUM($E$12:E24) -> 10350033.15 | K25: =SUM($K$11:K24) -> 8543931.394
A28: No Corrientes | K28: =+SUM(K31:K36) -> 115631408
D29: Junio 2021 | J29: Diciembre 2020
A30: Préstamos de Entidades Locales (*) | B30: Vencimiento | C30: Símbolo de Moneda | D30: Moneda | E30: Importe (miles de Gs) | F30: Tipo de garantía | H30: Vencimiento | I30: Símbolo de Moneda | J30: Moneda | K30: Importe (miles de Gs) | L30: Tipo de Garantía
A31: BANCO ITAU S.A.E.C.A. | B31: 2025 | C31: USD | D31: =IFERROR(VLOOKUP(C31,'Base de Monedas'!A:B,2,0),"") -> Dólar estadounidense | E31: 62294773.9 | F31: Fideicomiso | H31: 2025 | I31: USD | J31: =IFERROR(VLOOKUP(I31,'Base de Monedas'!G:H,2,0),"") ->  | K31: 63955753.84 | L31: Fideicomiso
A32: FINEXPAR S.A.E.C.A. | B32: 2030 | C32: PYG | D32: =IFERROR(VLOOKUP(C32,'Base de Monedas'!A:B,2,0),"") -> Guaraní | E32: 22576551.7 | F32: Codeudoria | H32: 2030 | I32: PYG | J32: =IFERROR(VLOOKUP(I32,'Base de Monedas'!G:H,2,0),"") ->  | K32: 22576551.7 | L32: Codeudoria
A33: CRISOL Y ENCARNACION FINANCIERA S.A.E.C.A. | C33: PYG | D33: =IFERROR(VLOOKUP(C33,'Base de Monedas'!A:B,2,0),"") -> Guaraní | F33: Codeudoria | H33: 2026 | I33: PYG | J33: =IFERROR(VLOOKUP(I33,'Base de Monedas'!G:H,2,0),"") ->  | K33: 3204854.626 | L33: Codeudoria
A34: BANCO PARA LA COMERCIALIZACION Y LA PRODUCCION S.A. (BANCOP | C34: USD | D34: =IFERROR(VLOOKUP(C34,'Base de Monedas'!A:B,2,0),"") -> Dólar estadounidense | F34: Codeudoria | H34: 2022 | I34: USD | J34: =IFERROR(VLOOKUP(I34,'Base de Monedas'!G:H,2,0),"") ->  | K34: 598481.7129 | L34: Codeudoria
A35: CREDICENTRO S.A.E.C.A. | C35: USD | D35: =IFERROR(VLOOKUP(C35,'Base de Monedas'!A:B,2,0),"") -> Dólar estadounidense | F35: A sola Firma | H35: 2028 | I35: USD | J35: =IFERROR(VLOOKUP(I35,'Base de Monedas'!G:H,2,0),"") ->  | K35: 15813359.98 | L35: A sola Firma
A36: CREDICENTRO S.A.E.C.A. | C36: PYG | D36: =IFERROR(VLOOKUP(C36,'Base de Monedas'!A:B,2,0),"") -> Guaraní | F36: A sola Firma | H36: 2022 | I36: PYG | J36: =IFERROR(VLOOKUP(I36,'Base de Monedas'!G:H,2,0),"") ->  | K36: 9482406.145 | L36: A sola Firma
A37: Deudas bursátiles | D37: =IFERROR(VLOOKUP(C37,'Base de Monedas'!A:B,2,0),"") ->  | J37: =IFERROR(VLOOKUP(I37,'Base de Monedas'!G:H,2,0),"") -> 
A38: Intereses préstamos entidades financieras a pagar | D38: =IFERROR(VLOOKUP(C38,'Base de Monedas'!A:B,2,0),"") ->  | J38: =IFERROR(VLOOKUP(I38,'Base de Monedas'!G:H,2,0),"") -> 
A39: Intereses a pagar | C39: PYG | D39: =IFERROR(VLOOKUP(C39,'Base de Monedas'!A:B,2,0),"") -> Guaraní | E39: 15587094.96 | I39: PYG | J39: =IFERROR(VLOOKUP(I39,'Base de Monedas'!G:H,2,0),"") ->  | K39: 20015266.61
A40: (-) Intereses a Devengar | C40: PYG | D40: =IFERROR(VLOOKUP(C40,'Base de Monedas'!A:B,2,0),"") -> Guaraní | E40: -15587094.96 | I40: PYG | J40: =IFERROR(VLOOKUP(I40,'Base de Monedas'!G:H,2,0),"") ->  | K40: -19913814.26
A41: Intereses a pagar | C41: USD | D41: =IFERROR(VLOOKUP(C41,'Base de Monedas'!A:B,2,0),"") -> Dólar estadounidense | E41: 18358696.5 | I41: USD | J41: =IFERROR(VLOOKUP(I41,'Base de Monedas'!G:H,2,0),"") ->  | K41: 24379497.55
A42: (-) Intereses a Devengar | C42: USD | D42: =IFERROR(VLOOKUP(C42,'Base de Monedas'!A:B,2,0),"") -> Dólar estadounidense | E42: -15003994.92 | I42: USD | J42: =IFERROR(VLOOKUP(I42,'Base de Monedas'!G:H,2,0),"") ->  | K42: -23181736.32
A43: Total | D43: =IFERROR(VLOOKUP(C43,'Base de Monedas'!A:B,2,0),"") ->  | E43: =SUM($E$31:E42) -> 88226027.18 | J43: =IFERROR(VLOOKUP(I43,'Base de Monedas'!A:B,2,0),"") ->  | K43: =SUM($K$31:K42) -> 116930621.6
J44: =IFERROR(VLOOKUP(I44,'Base de Monedas'!H:I,2,0),"") -> 
A45: No Corrientes | K45: =+SUM(K48:K49) -> 0
D46: Junio 2021 | J46: Diciembre 2020
A47: Bonos | B47: Vencimiento | C47: Símbolo de Moneda | D47: Moneda | E47: Importe (miles de Gs) | F47: Tipo de garantía | H47: Vencimiento | I47: Símbolo de Moneda | J47: Moneda | K47: Importe (miles de Gs) | L47: Tipo de Garantía
A48: Bonos Emitidos | B48: 2031 | C48: USD | D48: =IFERROR(VLOOKUP(C48,'Base de Monedas'!A:B,2,0),"") -> Dólar estadounidense | E48: 101420550
A49: Bonos Emitidos | B49: 2031 | C49: PYG | D49: =IFERROR(VLOOKUP(C49,'Base de Monedas'!A:B,2,0),"") -> Guaraní | E49: 50000000
A50: Deudas bursátiles | D50: =IFERROR(VLOOKUP(C50,'Base de Monedas'!A:B,2,0),"") ->  | J50: =IFERROR(VLOOKUP(I50,'Base de Monedas'!G:H,2,0),"") -> 
A51: Intereses préstamos entidades financieras a pagar | D51: =IFERROR(VLOOKUP(C51,'Base de Monedas'!A:B,2,0),"") ->  | J51: =IFERROR(VLOOKUP(I51,'Base de Monedas'!G:H,2,0),"") -> 
A52: Intereses a pagar | C52: PYG | D52: =IFERROR(VLOOKUP(C52,'Base de Monedas'!A:B,2,0),"") -> Guaraní | E52: 46402808.22
A53: (-) Intereses a Devengar | C53: PYG | D53: =IFERROR(VLOOKUP(C53,'Base de Monedas'!A:B,2,0),"") -> Guaraní | E53: -46387808.22
A54: Intereses a pagar | C54: USD | D54: =IFERROR(VLOOKUP(C54,'Base de Monedas'!A:B,2,0),"") -> Dólar estadounidense | E54: 58658496.81
A55: (-) Intereses a Devengar | C55: USD | D55: =IFERROR(VLOOKUP(C55,'Base de Monedas'!A:B,2,0),"") -> Dólar estadounidense | E55: -58638675.78
A56: Total | D56: =IFERROR(VLOOKUP(C56,'Base de Monedas'!A:B,2,0),"") ->  | E56: =SUM($E$48:E55) -> 151455371 | J56: =IFERROR(VLOOKUP(I56,'Base de Monedas'!A:B,2,0),"") ->  | K56: =SUM($K$48:K55) -> 0
A58: (*) La exposicion corresponde a la porcion no corriente, la porcion corriente se expone en Nota 15.

Sheet Nota 15
A1: =Indice!C1 -> GRUPO VAZQUEZ S.A.E. | D1: BG
A5: NOTA 15 – PORCION CORRIENTE DE LA DEUDA A LARGO PLAZO
A6: En miles de guaranies
A8: Porción corriente de la deuda a largo plazo | B8: Junio 2021 | C8: Diciembre 2020
A9: BANCO ITAU S.A.E.C.A. USD | B9: 0 | C9: 0
A10: FINEXPAR S.A.E.C.A. PYG | B10: 2508505.739 | C10: 2508505.739
A11: CRISOL Y ENCARNACION FINANCIERA S.A.E.C.A. PYG | C11: 291350.42
A12: BANCO PARA LA COMERCIALIZACION Y LA PRODUCCION S.A. (BANCOP ) USD | C12: 526056.563
A13: CREDICENTRO S.A.E.C.A. USD | B13: 0 | C13: 1786337.624
A14: Intereses a pagar PYG | C14: 4402215.595
A15: (-) Intereses a Devengar PYG | C15: -3200615.276
A16: Intereses a pagar USD | C16: 1471989.725
A17: (-) Intereses a Devengar USD | C17: -1033884.557
A18: Total general | B18: =SUM($B$9:B17) -> 2508505.739 | C18: =SUM($C$9:C17) -> 6751955.833

Sheet Nota 16
A1: =Indice!C1 -> GRUPO VAZQUEZ S.A.E. | F1: BG
A5: NOTA 16 – REMUNERACIONES Y CARGAS SOCIALES A PAGAR
A6: En miles de guaranies
A8: Remuneraciones y cargas sociales a pagar | B8: Junio 2021 | C8: Diciembre 2020
A9: Aportes y retenciones a pagar | B9: 120219.445 | C9: 83955.07
A10: Remuneraciones a Pagar | B10: 610556.162
A11: Total | B11: =SUM($B$9:B10) -> 730775.607 | C11: =SUM($C$9:C10) -> 83955.07

Sheet Nota 17
A1: =Indice!C1 -> GRUPO VAZQUEZ S.A.E. | D1: BG
A5: NOTA 17 – IMPUESTOS A PAGAR
A6: En miles de guaranies
A8: Impuestos a pagar | B8: Junio 2021 | C8: Diciembre 2020
A9: Impuesto a la renta a pagar | B9: 2239908.07 | C9: 2141283.93
A10: Otros impuestos a pagar | B10: 27398.25 | C10: 2083.955
A11: Total | B11: =SUM($B$9:B10) -> 2267306.32 | C11: =SUM($C$9:C10) -> 2143367.885

Sheet Nota 18
A1: =Indice!C1 -> GRUPO VAZQUEZ S.A.E. | D1: BG
A5: NOTA 18 - PROVISIONES
A6: En miles de guaranies
A8: Provisiones | B8: Junio 2021 | C8: Diciembre 2020
A10: Alquileres a Pagar
A11: Servicios Basicos a Pagar
A12: Honorarios Profesionales a Pagar
A13: Total | B13: =SUM($B$10:B12) -> 0 | C13: =SUM($C$10:C12) -> 0

Sheet Nota 19
A1: =Indice!C1 -> GRUPO VAZQUEZ S.A.E. | D1: BG
A5: NOTA 19 – OTROS PASIVOS CORRIENTES y NO CORRIENTES
A6: En miles de guaranies
A8: Corrientes | B8: Junio 2021 | C8: Diciembre 2020 | E8: No Corrientes | F8: Junio 2021 | G8: Diciembre 2020
A9: Otros ingresos diferidos - Anticipo de Clientes | B9: 0 | C9: 18884.5 | E9: Otras Cuentas a Pagar Moneda Local | F9: 57998675.61 | G9: 25740000
A10: Otros Pasivos con Entidades relacionadas | B10: 10213422.36 | C10: 0 | E10: Otras Cuentas a Pagar Moneda Extranjera | F10: 10634294.91 | G10: 10878771.24
A11: Seguros a Pagar | B11: 0 | C11: 26874.274 | E11: Total | F11: =SUM(F9:F10) -> 68632970.52 | G11: =SUM(G9:G10) -> 36618771.24
A12: Obligaciones por Emision de Bonos | B12: 2041107.547 | C12: 0
A13: Otras Cuentas a Pagar Moneda Local | B13: 60645.552 | C13: 782650.058
A14: Otras Cuentas a Pagar Moneda Extranjera | B14: 1863.233 | C14: 220294.7
A15: Total | B15: =SUM(B9:B14) -> 12317038.69 | C15: =SUM(C9:C14) -> 1048703.532

Sheet Nota 20
A1: =Indice!C1 -> GRUPO VAZQUEZ S.A.E. | D1: BG
A5: NOTA 20 – CAPITAL INTEGRADO
A6: En miles de guaranies
A8: Fecha | B8: Junio 2021 | C8: Diciembre 2020
A9: Monto Capital Social | B9: 300000000 | C9: 300000000
A10: Monto Capital Integrado | B10: 240000000 | C10: 240000000
A11: Monto Aportes No Capitalizados | B11: 7054448.339 | C11: 54448.339
A12: Cantidad de Acciones | B12: 2400 | C12: 2400
A13: Valor Nominal de Acciones
A14: Total Capital | B14: =+B10 -> 240000000 | C14: =+C10 -> 240000000 | D14: =+D9 -> 0
A15: Total Aportes No Capitalizados | B15: =+B11 -> 7054448.339 | C15: =+C11 -> 54448.339

Sheet Nota 21
A1: =Indice!C1 -> GRUPO VAZQUEZ S.A.E. | F1: BG
A4: NOTA 21 – RESERVAS
A5: En miles de guaranies
B7: Junio 2021 | C7: Diciembre 2020
A8: a Reserva de revalúo | B8: 0 | C8: 0
A12: b Reserva legal | B12: 568139.857
A17: c Reservas estatutarias
A21: d Reservas facultativas | B21: =+SUM($B$22:B25) -> 12506990.12 | C21: =+SUM($C$22:C25) -> 1712332.836
A22: d.1. Reserva por VPP | B22: 1712332.836 | C22: 1712332.836
A23: d.2. Reserva por Facultativa | B23: 10794657.28 | C23: 0

Sheet Nota 22
A1: =Indice!C1 -> GRUPO VAZQUEZ S.A.E. | D1: BG
A5: NOTA 21 – DIFERENCIA TRANSITORIA POR CONVERSION
A6: En miles de guaranies
B8: Junio 2021 | C8: Diciembre 2020
A9: Diferencia transitoria por conversión

Sheet Nota 23
A1: =Indice!C1 -> GRUPO VAZQUEZ S.A.E. | F1: BG
A4: NOTA 23 – RESULTADOS
A5: En miles de guaranies
B7: Junio 2021 | C7: Diciembre 2020
A8: Resultado de ejercicios anteriores | B8: 0 | C8: 0
A9: Resultado del ejercicio actual | B9: 14996865.19 | C9: 11362797.14
A10: Totales | B10: =SUM($B$8:B9) -> 14996865.19 | C10: =SUM($C$8:C9) -> 11362797.14

Sheet Nota 24
A1: =Indice!C1 -> GRUPO VAZQUEZ S.A.E. | F1: BG
A4: NOTA 24 – INTERES MINORITARIO
A5: En miles de guaranies
B7: Junio 2021 | C7: Diciembre 2020
A8: Interes Minoritario

Sheet Nota 25
A1: =Indice!C1 -> GRUPO VAZQUEZ S.A.E. | E1: ER
A5: NOTA 25 – VENTAS
A6: En miles de guaranies
A8: Ventas | B8: Junio 2021 | C8: Junio 2020
A9: Ventas de mercaderias gravadas | B9: 39181638.97 | C9: 7981299.123
A10: Ventas de mercaderias exentas | C10: 0
A11: Ventas de ganado | B11: 1825728.862 | C11: 1262048.304
A12: Ventas de productos de la explotación forestal | B12: 305960.682 | C12: 83440
A13: Ventas de servicios | B13: 2827009.209 | C13: 218044.345
A14: Venta de bienes del activo fijo | B14: 60098522.17 | C14: 638302.706
A15: Ingreso por Intereses | B15: 12648.472 | C15: 711987.273
A16: Ventas de Acciones | B16: 590000 | C16: 0
A17: Ingreso por dividendos | B17: 10801835.06 | C17: 0
A18: Total | B18: =SUM($B$9:B17) -> 115643343.4 | C18: =SUM($C$9:C17) -> 10895121.75

Sheet Nota 26
A1: =Indice!C1 -> GRUPO VAZQUEZ S.A.E. | E1: ER
A5: NOTA 26 - COSTO DE VENTAS
A6: Miles de guaraníes
A8: Costo de ventas | B8: Junio 2021 | C8: Junio 2020
A9: Costos de mercaderias gravadas | B9: -36670090.87 | C9: -1396460.61
A10: Costos de mercaderias exentas | B10: 0 | C10: 0
A11: Costos de ganado | B11: -1062172.733 | C11: -630705.79
A12: Costos de productos de la explotación forestal | B12: -883.971 | C12: -1441.578
A13: Costos de Acciones | B13: -590000
A14: Costo de bienes del activo fijo | B14: -50219218.92 | C14: 0
A15: Total costo de ventas | B15: =SUM($B$9:B14) -> -88542366.49 | C15: =SUM($C$9:C14) -> -2028607.978

Sheet Nota 27
A1: =Indice!C1 -> GRUPO VAZQUEZ S.A.E. | G1: ER
A5: NOTA 27 - GASTOS
A6: Miles de guaraníes
A8: El rubro está compuesto de la siguiente forma:
C10: Junio 2021 | F10: Junio 2020
B11: Gastos de Ventas | C11: Gastos Administrativos | D11: Total | E11: Gastos de Ventas | F11: Gastos Administrativos | G11: Total
A12: Gastos de alquiler | B12: 0 | C12: 167145.96 | D12: =+C12+B12 -> 167145.96 | E12: 0 | F12: 154567.084 | G12: =+F12+E12 -> 154567.084
A13: Honorarios profesionales y asesoramiento | B13: 0 | C13: 2203191.2 | D13: =+C13+B13 -> 2203191.2 | E13: 0 | F13: 203668.178 | G13: 203668.178
A14: Sueldos y Jornales | B14: 0 | C14: 757623.547 | D14: 757623.547 | E14: 0 | F14: 278138.94 | G14: 278138.94
A15: Contribuciones Sociales | B15: 0 | C15: 124848.188 | D15: 124848.188 | E15: 0 | F15: 136773.406 | G15: 136773.406
A16: Gastos de Publicidad y Propaganda | B16: 168.798 | C16: 0 | D16: 168.798 | E16: 0 | F16: 0 | G16: 0
A17: Comisiones pagadas sobre ventas | B17: 0 | C17: 0 | D17: 0 | E17: 44265.056 | F17: 0 | G17: 44265.056
A18: Fletes pagados | B18: 12705.082 | C18: 0 | D18: 12705.082 | E18: 2433.636 | F18: 0 | G18: 2433.636
A19: Otros gastos de ventas | B19: 17422.442 | C19: 0 | D19: 17422.442 | E19: 3201 | F19: 0 | G19: 3201
A20: Guias y otros gastos de comercializacion | B20: 10138.7 | C20: 0 | D20: 10138.7 | E20: 0 | F20: 0 | G20: 0
A21: Productos veterinarios | B21: 115301 | C21: 0 | D21: 115301 | E21: 0 | F21: 0 | G21: 0
A22: Aguinaldos | B22: 0 | C22: 29916.573 | D22: 29916.573 | E22: 0 | F22: 8618.956 | G22: 8618.956
A23: Otros beneficios al personal | B23: 0 | C23: 2595.909 | D23: 2595.909 | E23: 0 | F23: 9968.096 | G23: 9968.096
A24: Gastos de Salud | B24: 0 | C24: 32496.159 | D24: 32496.159 | E24: 0 | F24: 0 | G24: 0
A25: Bonificación familiar | B25: 0 | C25: 3947.13 | D25: 3947.13 | E25: 0 | F25: 1973.556 | G25: 1973.556
A26: Energía eléctrica | B26: 0 | C26: 17730.836 | D26: 17730.836 | E26: 0 | F26: 4392.836 | G26: 4392.836
A27: Teléfono e internet | B27: 0 | C27: 22229.541 | D27: 22229.541 | E27: 0 | F27: 27559.451 | G27: 27559.451
A28: Agua | B28: 0 | C28: 11707.055 | D28: 11707.055 | E28: 0 | F28: 187 | G28: 187
A29: Viáticos y movilidad | B29: 0 | C29: 4995.492 | D29: 4995.492 | E29: 0 | F29: 5664.301 | G29: 5664.301
A30: Combustibles y lubricantes | B30: 0 | C30: 157137.583 | D30: 157137.583 | E30: 0 | F30: 85091.704 | G30: 85091.704
A31: Reparaciones y mantenimientos | B31: 0 | C31: 251453.15 | D31: 251453.15 | E31: 0 | F31: 160081.792 | G31: 160081.792
A32: Seguros pagados | B32: 0 | C32: 192632.891 | D32: 192632.891 | E32: 0 | F32: 14977.353 | G32: 14977.353
A33: Útiles de oficina | B33: 0 | C33: 7405.718 | D33: 7405.718 | E33: 0 | F33: 5313.846 | G33: 5313.846
A34: Gastos pagados en el exterior | B34: 0 | C34: 0 | D34: 0 | E34: 0 | F34: 0 | G34: 0
A35: Comisiones y gastos bancarios operacional | B35: 0 | C35: 0 | D35: 0 | E35: 0 | F35: 14365.562 | G35: 14365.562
A36: Impuestos, patentes y tasas | B36: 0 | C36: 118864.801 | D36: 118864.801 | E36: 0 | F36: 116540.015 | G36: 116540.015
A37: Gastos de escribanía | B37: 0 | C37: 142698.88 | D37: 142698.88 | E37: 0 | F37: 909.091 | G37: 909.091
A38: Gastos CNV y BVPASA | B38: 0 | C38: 207946.165 | D38: 207946.165 | E38: 0 | F38: 0 | G38: 0
A39: Gastos generales | B39: 0 | C39: 239772.743 | D39: 239772.743 | E39: 0 | F39: 236073.038 | G39: 236073.038
A40: Gastos y artículos de limpieza | B40: 0 | C40: 186.091 | D40: 186.091 | E40: 0 | F40: 0 | G40: 0
A41: Seguridad y vigilancia | B41: 0 | C41: 463.636 | D41: 463.636 | E41: 0 | F41: 1622.734 | G41: 1622.734
A42: Honorarios fiduciarios | B42: 0 | C42: 0 | D42: 0 | E42: 0 | F42: 0 | G42: 0
A43: Gastos generales puka | B43: 0 | C43: 291257.973 | D43: =+C43+B43 -> 291257.973 | E43: 0 | F43: 0 | G43: =+F43+E43 -> 0
A44: Gastos generales Walterio | B44: 0 | C44: 73571.522 | D44: 73571.522 | E44: 0 | F44: 0 | G44: 0
A45: Total | B45: =-SUM($B$12:B44) -> -155736.022 | C45: =-SUM($C$12:C44) -> -5061818.743 | D45: =-SUM($D$12:D44) -> -5217554.765 | E45: =-SUM($E$12:E44) -> -49899.692 | F45: =-SUM($F$12:F44) -> -1466486.939 | G45: =-SUM($G$12:G44) -> -1516386.631

Sheet Nota 28
A1: =Indice!C1 -> GRUPO VAZQUEZ S.A.E. | E1: ER
A5: Nota 28 - Otros Ingresos y gastos operativos
A6: Miles de guaraníes
A8: Otros ingresos | B8: Junio 2021 | C8: Junio 2020 | E8: Otros gastos | F8: Junio 2021 | G8: Junio 2020
A9: Ingresos Varios | B9: 1234028.9 | C9: 416741.325 | E9: Depreciaciones | F9: -491013.544 | G9: 0
A10: Descuentos Obtenidos | B10: 464569.444 | E10: Recargos y multas | F10: -44764.035 | G10: -1400
A11: Total | B11: =SUM($B$9:B10) -> 1698598.344 | C11: =SUM($C$9:C10) -> 416741.325 | E11: Gastos varios no deducibles | F11: -670280.555 | G11: -17625.769
E12: Sueldos no deducibles | F12: -159675.245 | G12: -85008.251
E13: Retencion de renta gnd | F13: -8283.373 | G13: -2880.806
E14: Gastos de Administracion gnd | F14: -150986.845 | G14: 0
E15: Retencion idu | F15: 0 | G15: 0
E16: Donaciones y contribuciones | F16: 0 | G16: 0
E17: Gastos de Administracion | F17: -420777.527 | G17: -155360.988
E18: Otros gastos | F18: -363.636 | G18: -51328.583
E19: Total | F19: =SUM($F$9:F18) -> -1946144.76 | G19: =SUM($G$9:G18) -> -313604.397

Sheet Nota 29
A1: =Indice!C1 -> GRUPO VAZQUEZ S.A.E. | E1: ER
A5: NOTA 29 - GASTOS FINANCIEROS Y CONVERSION DE MONEDA EXTRANJERA
A6: Miles de guaraníes
A8: Gastos Financieros | B8: Junio 2021 | C8: Junio 2020 | E8: Conversion de Moneda | F8: Junio 2021 | G8: Junio 2020
A9: Gastos Financieros | B9: 7301317.64 | C9: 6537087.62 | E9: Diferencia de Cambio | F9: -2407922.738 | G9: -27201.818
A10: Comisiones y Gastos Financieros | B10: 79297.73 | C10: 570512.908 | E10: Total gastos por Conversion | F10: =SUM($F9:F9) -> -2407922.738 | G10: =SUM($G9:G9) -> -27201.818
A11: Total gastos financieros | B11: =SUM($B9:B10) -> 7380615.37 | C11: =SUM($C9:C10) -> 7107600.528

Sheet Nota 30
A1: =Indice!C1 -> GRUPO VAZQUEZ S.A.E. | E1: ER
A5: Nota 34 - Resultado de inversiones en asociadas
A6: Miles de guaraníes
A9: Resultado de inversiones en asociadas | B9: Junio 2021 | C9: Junio 2020
A13: Total | B13: =SUM($B10:B12) -> 0 | C13: =SUM($C10:C12) -> 0

Sheet Nota 31
A1: =Indice!C1 -> GRUPO VAZQUEZ S.A.E. | E1: ER
A5: Nota 31 - Resultado participación minoritaria
A6: Miles de guaraníes
A9: Resultado participación minoritaria | B9: Junio 2021 | C9: Junio 2020
A12: Total | B12: =SUM($B10:B11) -> 0 | C12: =SUM($C10:C11) -> 0

Sheet Nota 32
A1: =Indice!C1 -> GRUPO VAZQUEZ S.A.E. | E1: ER
A5: Nota 32 - IMPUESTO A LA RENTA
A6: En miles de guaraníes
B8: Junio 2021 | C8: Junio 2020
A9: Impuesto a la renta | B9: -1666317.934 | C9: 0
A10: Total | B10: =SUM($B9:B9) -> -1666317.934 | C10: =SUM($C9:C9) -> 0

Sheet Nota 33
A1: =Indice!C1 -> GRUPO VAZQUEZ S.A.E. | E1: ER
A5: Nota 33 - Resultado extraordinario neto de impuesto a la renta
A6: En miles de guaraníes
B8: Junio 2021 | C8: Junio 2020
A9: Conceptos
A10: Utilidades del Ejercicio | B10: 14996865.19 | C10: 372865.36
A11: Total | B11: =SUM($B9:B10) -> 14996865.19 | C11: =SUM($C9:C10) -> 372865.36

Sheet Nota 34
A1: =Indice!C1 -> GRUPO VAZQUEZ S.A.E. | E1: ER
A5: Nota 34 - Resultado sobre actividades discontinuadas neto de impuesto a la renta
A6: En miles de guaraníes
A8: Resultado sobre actividades discontinuadas neto de impuesto a la renta | B8: Junio 2021 | C8: Junio 2020
A12: Total | B12: =SUM($B9:B11) -> 0 | C12: =SUM($C9:C11) -> 0

Sheet Nota 35
A1: =Indice!C1 -> GRUPO VAZQUEZ S.A.E. | E1: ER
A5: NOTA 35- UTILIDAD (PÉRDIDA) NETA DEL AÑO Y POR ACCION ORDINARIA
A6: En miles de guaraníes
B8: Junio 2021 | C8: Junio 2020
A9: Cantidad de Acciones Ordinarias en Circulación | B9: 2400 | C9: 1898
A10: Utilidad Neta | B10: 14996865.19 | C10: =+ER!D31 -> 372865.36
A11: Utilidad Neta por Acción Ordinaria | B11: =IFERROR(B10/B9,0) -> 6248.693828 | C11: =+C10/C9 -> 196.4517176

Sheet Nota 36
A1: =Indice!C1 -> GRUPO VAZQUEZ S.A.E. | E1: Indice
A5: NOTA 36 - ACTIVOS GRAVADOS
A6: En miles de guaraníes
A8: Los siguientes bienes de propiedad de la Sociedad han sido hipotecados y prendados en garantía de obligaciones financieras.
A10: Al 31 de Diciembre de 2020
A11: Tipo de Activo | B11: Datos del activo gravado | C11: Tipo de garantía | D11: Importe PYG | E11: A favor de
A12: Activos en Fideicomiso | C12: Fideicomiso | D12: 130934449.5 | E12: BANCO ITAU S.A.E.C.A.
A15: =IFERROR("Al "&DAY(Indice!B6)&" de "&VLOOKUP(MONTH(Indice!B6),Indice!S:T,2,0)&" de "&YEAR(Indice!B6-1),"Al dia... de mes… de año 2XX2…") -> Al 30 de Junio de 2021
A16: Tipo de Activo | B16: Datos del activo gravado | C16: Tipo de garantía | D16: Importe PYG | E16: A favor de
A17: Activos en Fideicomiso | C17: Fideicomiso | D17: 130934449.5 | E17: BANCO ITAU S.A.E.C.A.

Sheet Nota 37
A1: =Indice!C1 -> GRUPO VAZQUEZ S.A.E. | E1: Indice
A5: NOTA 37 - CONTINGENCIAS Y COMPROMISOS
A6: =IFERROR("Al "&DAY(Indice!B6)&" de "&VLOOKUP(MONTH(Indice!B6),Indice!S:T,2,0)&" de "&YEAR(Indice!B6-1)&" no existen situaciones contingentes, ni reclamos que pudieran resultar en la generación de obligaciones para la Sociedad adicionales a las que se presentan en estos estados financieros.","Al … de …………... 20X2 no existen situaciones contingentes, ni reclamos que pudieran resultar en la generación de obligaciones para la Sociedad adicionales a las que se presentan en estos estados financieros.") -> Al 30 de Junio de 2021 no existen situaciones contingentes, ni reclamos que pudieran resultar en la generación de obligaciones para la Sociedad adicionales a las que se presentan en estos estados financieros.

Sheet Nota 38
A1: =Indice!C1 -> GRUPO VAZQUEZ S.A.E. | D1: Índice
A4: NOTA 38 - IMPUESTO DIFERIDO
A5: En miles de guaraníes
A6: Al 30 de Junio 2021 la Sociedad constituyó una provisión para impuesto a la renta de Guaraníes 1.666.318 (Al 31 de diciembre 2020: Guaraníes 1.289.750).
A8: El siguiente cuadro detalla las diferencias temporales a la tasa del impuesto a los efectos de determinación del impuesto diferido:
B10: Junio 2021 | C10: Diciembre 2020
A11: Activos y pasivos impositivos diferidos:
A12: Caja y Bancos
A13: Inversiones
A14: Previsión para deudores incobrables
A15: Bienes de uso
A16: Activos intangibles
A17: Previsión del pasivo
A18: Deudas comerciales y bancarias
A19: Bienes de cambio
A20: Sub - total
A21: Previsión para impuestos diferidos netos
A22: Total activo/pasivo impositivo diferido neto antes de quebrantos
A23: Quebranto impositivo
A24: Total

Sheet Nota 39
A1: =Indice!C1 -> GRUPO VAZQUEZ S.A.E. | E1: Indice
A5: NOTA 39 - HECHOS POSTERIORES
A7: Con posterioridad al 30 de Junio de 2021, la Organización Mundial de la Salud mantiene vigente al brote de coronavirus (COVID-19) como una pandemia. La situación de emergencia sobre la salud pública se expandió prácticamente en todo el mundo y los distintos países han tomado diversas medidas para hacerle frente. Esta situación y las medidas adoptadas han afectado significativamente la actividad económica internacional con impactos diversos en los distintos países y sectores de negocio. La Dirección de la Sociedad estima que esta situación podría generar un impacto negativo sobre las operaciones de la Sociedad, pero las incertidumbres en relación con los efectos, extensión y duración de esta cuestión no permiten una estimación razonable de ese impacto a la fecha de emisión de los presentes estados financieros, lo que dependerá de la gravedad de la emergencia sanitaria y del éxito de las medidas tomadas y que se tomen en el futuro.
A8: Grupo Vázquez S.A.E., accionista controlante de Credicentro S.A.E.C.A., suscribió en fecha 9 de abril de 2020 la compra de la mayoría del paquete accionario de la entidad financiera regulada: Financiera El Comercio S.A.E.C.A. La transacción está sujeta a la aprobación regulatoria del Banco Central del Paraguay y de la Comisión Nacional de Competencia de la República del Paraguay.

Sheet Nota 40
A1: =Indice!C1 -> GRUPO VAZQUEZ S.A.E. | C1: Indice
A5: NOTA 40 - SALDOS Y TRANSACCIONES CON PARTES RELACIONADAS
A6: Miles de guaraníes
B8: Junio 2021 | C8: Diciembre 2020
A9: ACTIVO
A10: Inversiones | B10: 325687692.5 | C10: 154343509.4
A11: Cuentas a cobrar comerciales | B11: 776889.553 | C11: 1000616.468
A12: Otros créditos | B12: 853146.9068 | C12: 0
A13: Total activo | B13: =SUM(B10:B12) -> 327317729 | C13: 155344125.8
A14: PASIVO
A15: Cuentas por pagar comerciales | B15: 23646635 | C15: 23685471.23
A16: Préstamos a corto plazo | B16: 0 | C16: 6598819.886
A17: Provisiones | B17: 0 | C17: 0
A18: Préstamos a largo plazo | B18: 0 | C18: 25424947.87
A19: Otros pasivos | B19: 21210727.97 | C19: 7500
A20: Total pasivo | B20: =SUM(B15:B19) -> 44857362.98 | C20: 55716738.99
B24: =IFERROR(IF(Indice!B6="","2XX2",YEAR(Indice!B6)),"2XX2") -> 2021 | C24: =+IFERROR(YEAR(Indice!B6-365),"2XX1") -> 2020
A25: Costo de ventas
A26: Compras a ….
A28: Gastos administrativos
A29: Honorarios por servicios
A30: Otros
A31: Gastos financieros
A32: Intereses pagados por préstamos

Sheet Base de Monedas
A1: PYG | B1: Guaraní | C1: Índice
A2: USD | B2: Dólar estadounidense
A3: EUR | B3: Euro
A4: AED | B4: Dírham de los Emiratos Árabes Unidos
A5: AFN | B5: Afgani
A6: ALL | B6: Lek
A7: AMD | B7: Dram armenio
A8: ANG | B8: Florín antillano neerlandés
A9: AOA | B9: Kwanza
A10: ARS | B10: Peso argentino
A11: AUD | B11: Dólar australiano
A12: AWG | B12: Florín arubeño
A13: AZN | B13: Manat azerbaiyano
A14: BAM | B14: Marco convertible
A15: BBD | B15: Dólar de Barbados
A16: BDT | B16: Taka
A17: BGN | B17: Lev búlgaro
A18: BHD | B18: Dinar bareiní
A19: BIF | B19: Franco de Burundi
A20: BMD | B20: Dólar bermudeño
A21: BND | B21: Dólar de Brunéi
A22: BOB | B22: Boliviano
A23: BOV | B23: MVDOL
A24: BRL | B24: Real brasileño
A25: BSD | B25: Dólar bahameño
A26: BTN | B26: Ngultrum
A27: BWP | B27: Pula
A28: BYN | B28: Rublo bielorruso
A29: BZD | B29: Dólar beliceño
A30: CAD | B30: Dólar canadiense
A31: CDF | B31: Franco congoleño
A32: CHE | B32: Euro WIR
A33: CHF | B33: Franco suizo
A34: CHW | B34: Franco WIR
A35: CLF | B35: Unidad de fomento
A36: CLP | B36: Peso chileno
A37: CNY | B37: Yuan chino
A38: COP | B38: Peso colombiano
A39: COU | B39: Unidad de valor real
A40: CRC | B40: Colón costarricense
A41: CUC | B41: Peso convertible
A42: CUP | B42: Peso cubano
A43: CVE | B43: Escudo caboverdiano
A44: CZK | B44: Corona checa
A45: DJF | B45: Franco yibutiano
A46: DKK | B46: Corona danesa
A47: DOP | B47: Peso dominicano
A48: DZD | B48: Dinar argelino
A49: EGP | B49: Libra egipcia
A50: ERN | B50: Nakfa
A51: ETB | B51: Birr etíope
A52: FJD | B52: Dólar fiyiano
A53: FKP | B53: Libra malvinense
A54: GBP | B54: Libra esterlina
A55: GEL | B55: Lari
A56: GHS | B56: Cedi ghanés
A57: GIP | B57: Libra de Gibraltar
A58: GMD | B58: Dalasi
A59: GNF | B59: Franco guineano
A60: GTQ | B60: Quetzal
A61: GYD | B61: Dólar guyanés
A62: HKD | B62: Dólar de Hong Kong
A63: HNL | B63: Lempira
A64: HRK | B64: Kuna
A65: HTG | B65: Gourde
A66: HUF | B66: Forinto
A67: IDR | B67: Rupia indonesia
A68: ILS | B68: Nuevo shéquel israelí
A69: INR | B69: Rupia india
A70: IQD | B70: Dinar iraquí
A71: IRR | B71: Rial iraní
A72: ISK | B72: Corona islandesa
A73: JMD | B73: Dólar jamaiquino
A74: JOD | B74: Dinar jordano
A75: JPY | B75: Yen
A76: KES | B76: Chelín keniano
A77: KGS | B77: Som
A78: KHR | B78: Riel
A79: KMF | B79: Franco comorense
A80: KPW | B80: Won norcoreano
A81: KRW | B81: Won
A82: KWD | B82: Dinar kuwaití
A83: KYD | B83: Dólar de las Islas Caimán
A84: KZT | B84: Tenge
A85: LAK | B85: Kip
A86: LBP | B86: Libra libanesa
A87: LKR | B87: Rupia de Sri Lanka
A88: LRD | B88: Dólar liberiano
A89: LSL | B89: Loti
A90: LYD | B90: Dinar libio
A91: MAD | B91: Dírham marroquí
A92: MDL | B92: Leu moldavo
A93: MGA | B93: Ariary malgache
A94: MKD | B94: Denar
A95: MMK | B95: Kyat
A96: MNT | B96: Tugrik
A97: MOP | B97: Pataca
A98: MRU | B98: Uguiya
A99: MUR | B99: Rupia de Mauricio
A100: MVR | B100: Rufiyaa
A101: MWK | B101: Kwacha
A102: MXN | B102: Peso mexicano
A103: MXV | B103: Unidad de Inversión (UDI) mexicana
A104: MYR | B104: Ringgit malayo
A105: MZN | B105: Metical mozambiqueño
A106: NAD | B106: Dólar namibio
A107: NGN | B107: Naira
A108: NIO | B108: Córdoba
A109: NOK | B109: Corona noruega
A110: NPR | B110: Rupia nepalí
A111: NZD | B111: Dólar neozelandés
A112: OMR | B112: Rial omaní
A113: PAB | B113: Balboa
A114: PEN | B114: Sol
A115: PGK | B115: Kina
A116: PHP | B116: Peso filipino
A117: PKR | B117: Rupia pakistaní
A118: PLN | B118: Złoty
A119: QAR | B119: Riyal qatarí
A120: RON | B120: Leu rumano
A121: RSD | B121: Dinar serbio
A122: RUB | B122: Rublo ruso
A123: RWF | B123: Franco ruandés
A124: SAR | B124: Riyal saudí
A125: SBD | B125: Dólar de las Islas Salomón
A126: SCR | B126: Rupia seychelense
A127: SDG | B127: Dinar sudanés
A128: SEK | B128: Corona sueca
A129: SGD | B129: Dólar de Singapur
A130: SHP | B130: Libra de Santa Elena
A131: SLL | B131: Leone
A132: SOS | B132: Chelín somalí
A133: SRD | B133: Dólar surinamés
A134: SSP | B134: Libra sursudanesa
A135: STN | B135: Dobra
A136: SVC | B136: Colon Salvadoreño
A137: SYP | B137: Libra siria
A138: SZL | B138: Lilangeni
A139: THB | B139: Baht
A140: TJS | B140: Somoni tayiko
A141: TMT | B141: Manat turcomano
A142: TND | B142: Dinar tunecino
A143: TOP | B143: Paʻanga
A144: TRY | B144: Lira turca
A145: TTD | B145: Dólar de Trinidad y Tobago
A146: TWD | B146: Nuevo dólar taiwanés
A147: TZS | B147: Chelín tanzano
A148: UAH | B148: Grivna
A149: UGX | B149: Chelín ugandés
A150: USN | B150: Dólar estadounidense (Siguiente día)
A151: UYI | B151: Peso en Unidades Indexadas (Uruguay)
A152: UYU | B152: Peso uruguayo
A153: UYW | B153: Unidad Previsional
A154: UZS | B154: Som uzbeko
A155: VES7​ | B155: Bolívar soberano
A156: VND | B156: Dong vietnamita
A157: VUV | B157: Vatu
A158: WST | B158: Tala
A159: XAF | B159: Franco CFA de África Central
A160: XAG | B160: Plata (una onza troy)
A161: XAU | B161: Oro (una onza troy)
A162: XBA | B162: Unidad compuesta europea (EURCO) (Unidad del mercados de bonos)
A163: XBB | B163: Unidad Monetaria europea (E.M.U.-6) (Unidad del mercado de bonos)
A164: XBC | B164: Unidad europea de cuenta 9 (E.U.A.-9) (Unidad del mercado de bonos)
A165: XBD | B165: Unidad europea de cuenta 17 (E.U.A.-17) (Unidad del mercado de bonos)
A166: XCD | B166: Dólar del Caribe Oriental
A167: XDR | B167: Derechos especiales de giro
A168: XOF | B168: Franco CFA de África Occidental
A169: XPD | B169: Paladio (una onza troy)
A170: XPF | B170: Franco CFP
A171: XPT | B171: Platino (una onza troy)
A172: XSU | B172: SUCRE
A173: XTS | B173: Reservado para pruebas
A174: XUA | B174: Unidad de cuenta BAD
A175: XXX | B175: Sin divisa
A176: YER | B176: Rial yemení
A177: ZAR | B177: Rand
A178: ZMW | B178: Kwacha zambiano
A179: ZWL | B179: Dólar zimbabuense
